Workbook

Sheet مياه
A1: وزارة الإسكان والمرافق هيئة المرافق والمجتمعات العمرانية جهاز العاصمة الإداريه الجديدة | T1: حصر كميات أعمال البنية الاساسية
G2: الاستشاري:- المهندسون الاستشاريون ( AAW ) | AB2: المقاول:- شركة كونكورد للهندسة والمقاولات
A10: اســـم الـــمـشـروع :اسناد تنفيذ أعمال البنية الأساسية ( مياه - صرف - رى ) لإمتداد طرق بن زايد الشمالي والجنوبي والأعمال الكهروميكانيكية لخزان الإنشاءات 100 الف م3/يوم وكذلك الخط الرئيسى الخارج من الخزان بالعاصمةالإدارية الجديدة إلى المنطقة الإستثمارية
A11: تــاريــخ بــدء الــعــمــل حــســب الــعــقــد : 02/09/2018 م | AE11: مـــدة الـــمـــشـــروع حـــســـب الـــعـــقـــد : 365 يــــــوم ( 12 شهرا )
A12: تــاريــخ بــدء الــعــمــل الــــفــعـــلــي : | AF12: تاريخ النهو المقرر للـــمـــشـــروع :01/09/2019 م
A13: Accumelative Status Report
A14: م | B14: اسم الخط | C14: station | E14: طول الفرعة | F14: نوع التربة | G14: عدد طبقات الاحلال | H14: المقاول | I14: القطر | J14: اعمال التركيب | K14: المنفذ | L14: الميزانية الشبكية (رقم طلب الاستلام) | M14: المنفذ | N14: توقيع المسار (رقم طلب الاستلام) | O14: المنفذ | P14: منسوب قاع حفر (رقم طلب الاستلام) | Q14: المنفذ | R14: استلام قطاع الحفر | S14: المنفذ | T14: الاحلال | X14: استلام مناسيب ظهر الماسورة والاستقامة | Y14: المنفذ | Z14: استلام التعميم الخارجى لوصلات المواسير والحلقمة | AA14: المنفذ | AB14: تغليف بولي ايثيلين | AC14: المنفذ | AD14: ='Daily Log'!AA18 -> ردم حول الماسورة( طبقة أولـى وطبقة ثانية) بسمك 50 سم | AE14: المنفذ | AF14: ='Daily Log'!AA19 -> ردم حول الماسورة( طبقة ثالثة وطبقة رابعة ) بسمك 50 سم | AG14: المنفذ | AH14: تغليف المواسير | AI14: المنفذ | AJ14: تجربة الاختبار بالهواء المضغوط | AK14: المنفذ | AL14: ردم فوق التغليف (طبقة أولى) | AM14: المنفذ | AN14: ردم فوق التغليف (طبقة ثانية) | AO14: المنفذ | AP14: ردم فوق التغليف (طبقة ثالثة) | AQ14: المنفذ | AR14: ردم فوق التغليف (طبقة رابعة) | AS14: المنفذ | AT14: صلاحية تربة زلطية | AU14: صلاحية رمال نظيفة | AV14: أخذ عينات صخر | AW14: أخذ عينات من ناتج الحفر
T15: طبقة الأولى 25 سم | U15: المنفذ | V15: الفرشة | W15: المنفذ
C16: من:---- | D16: إلى:----
A17: 1 | B17: الخط الرئيسي | C17: -425 | D17: -400 | E17: =D17-C17 -> 25 | H17: محمد مصطفى | I17: 1200 | J17: =IF(X17<>"","Y","N") -> N | K17: =IF(J17="Y",E17,0) -> 0 | M17: =IF(L17<>"",$E$17,"") ->  | O17: =IF(N17<>"",E17,"") ->  | Q17: =IF(P17<>"",E17,"") ->  | S17: =IF(R17<>"",E17,"") ->  | U17: =IF(T17<>"",E17,"") ->  | W17: =IF(V17<>"",E17,"") ->  | Y17: =IF(X17<>"",E17,"") ->  | AA17: =IF(Z17<>"",E17,"") ->  | AC17: =IF(AB17<>"",E17,"") ->  | AE17: =IF(AD17<>"",E17,"") ->  | AG17: =IF(AF17<>"",E17,"") ->  | AI17: =IF(AH17<>"",E17,"") ->  | AK17: =IF(AJ17<>"",E17,"") ->  | AM17: =IF(AL17<>"",E17,"") ->  | AO17: =IF(AN17<>"",E17,"") ->  | AQ17: =IF(AP17<>"",E17,"") ->  | AS17: =IF(AR17<>"",E17,"") -> 
A18: 2 | B18: الخط الرئيسي | C18: =C17+25 -> -400 | D18: =D17+25 -> -375 | E18: 25 | H18: محمد مصطفى | I18: 1200 | J18: =IF(X18<>"","Y","N") -> N | K18: 0 | M18: =IF(L18<>"",E18,"") ->  | O18: =IF(N18<>"",E18,"") ->  | Q18: =IF(P18<>"",E18,"") ->  | S18: =IF(R18<>"",E18,"") ->  | W18: =IF(V18<>"",E18,"") ->  | Y18: =IF(X18<>"",E18,"") ->  | AA18: =IF(Z18<>"",E18,"") ->  | AC18: =IF(AB18<>"",E18,"") ->  | AE18: =IF(AD18<>"",E18,"") ->  | AG18: =IF(AF18<>"",E18,"") ->  | AI18: =IF(AH18<>"",E18,"") ->  | AK18: =IF(AJ18<>"",E18,"") ->  | AM18: =IF(AL18<>"",E18,"") ->  | AO18: =IF(AN18<>"",E18,"") ->  | AQ18: =IF(AP18<>"",E18,"") ->  | AS18: =IF(AR18<>"",E18,"") -> 
A19: 3 | B19: الخط الرئيسي | C19: =C18+25 -> -375 | D19: =D18+25 -> -350 | E19: 25 | H19: محمد مصطفى | I19: 1200 | J19: N | K19: 0 | M19: =IF(L19<>"",E19,"") -> 
A20: 4 | B20: الخط الرئيسي | C20: -350 | D20: -325 | E20: 25 | H20: محمد مصطفى | I20: 1200 | J20: N | K20: 0 | M20: =IF(L20<>"",E20,"") ->  | U20: =IF(T20<>"",E20,"") -> 
A21: 5 | B21: الخط الرئيسي | C21: -325 | D21: -300 | E21: 25 | H21: محمد مصطفى | I21: 1200 | J21: N | K21: 0 | U21: =IF(T21<>"",E21,"") -> 
A22: 6 | B22: الخط الرئيسي | C22: -300 | D22: -275 | E22: 25 | H22: محمد مصطفى | I22: 1200 | J22: N | K22: 0
A23: 7 | B23: الخط الرئيسي | C23: =C22+25 -> -275 | D23: -250 | E23: 25 | H23: محمد مصطفى | I23: 1200 | J23: N | K23: 0
A24: 8 | B24: الخط الرئيسي | C24: -250 | D24: -244 | E24: =D24-C24 -> 6 | H24: محمد مصطفى | I24: 1200 | J24: N | K24: 0
A25: 9 | B25: الخط الرئيسي | C25: -244 | D25: -225 | E25: =D25-C25 -> 19 | H25: محمد مصطفى | I25: 1200 | J25: N | K25: =IF(J25="Y",E25,0) -> 0 | L25: 197 | M25: 19 | P25: 184 | Q25: 19
A26: 10 | B26: الخط الرئيسي | C26: =C24+25 -> -225 | D26: -200 | E26: 25 | H26: محمد مصطفى | I26: 1200 | J26: N | K26: 0 | L26: 197 | M26: 25 | P26: 184 | Q26: 25
A27: 11 | B27: الخط الرئيسي | C27: -200 | D27: -175 | E27: 25 | H27: محمد مصطفى | I27: 1200 | J27: Y | K27: 25 | P27: 177 | Q27: 25 | R27: 171 | S27: 25 | V27: 181 | W27: 25 | X27: 187 | Y27: 25
A28: 12 | B28: الخط الرئيسي | C28: -175 | D28: -150 | E28: 25 | H28: محمد مصطفى | I28: 1200 | J28: Y | K28: 25 | P28: 177 | Q28: 25 | R28: 171 | S28: 25 | V28: 181 | W28: 25 | X28: 187 | Y28: 25
A29: 13 | B29: الخط الرئيسي | C29: -150 | D29: -125 | E29: 25 | H29: محمد مصطفى | I29: 1200 | J29: Y | K29: 25 | P29: 177 | Q29: 25 | R29: 171 | S29: 25 | V29: 181 | W29: 25 | X29: 187 | Y29: 25
A30: 14 | B30: الخط الرئيسي | C30: -125 | D30: -100 | E30: 25 | G30: 1 | H30: محمد مصطفى | I30: 1200 | J30: Y | K30: 25 | P30: 158 | Q30: 25 | R30: 159 | S30: 25 | V30: 170 | W30: 25 | X30: 174 | Y30: 25 | Z30: 175 | AA30: 25
A31: 15 | B31: الخط الرئيسي | C31: -100 | D31: -75 | E31: 25 | G31: 1 | H31: محمد مصطفى | I31: 1200 | J31: Y | K31: 25 | P31: 158 | Q31: 25 | R31: 159 | S31: 25 | V31: 170 | W31: 25 | X31: 174 | Y31: 25 | Z31: 175 | AA31: 25
A32: 16 | B32: الخط الرئيسي | C32: -75 | D32: -40 | E32: 35 | G32: 1 | H32: محمد مصطفى | I32: 1200 | J32: Y | K32: 35 | P32: 158 | Q32: 35 | R32: 159 | S32: 35 | V32: 170 | W32: 35 | X32: 174 | Y32: 35 | Z32: 175 | AA32: 35
A33: 17 | B33: الخط الرئيسي | C33: =-40 -> -40 | D33: =-25 -> -25 | E33: 15 | G33: 1 | H33: محمد مصطفى | I33: 1200 | J33: Y | K33: 15 | P33: 158 | Q33: 15 | R33: 159 | S33: 15 | V33: 161 | W33: 15 | X33: 167 | Y33: 15 | Z33: 175 | AA33: 15
A34: 18 | B34: الخط الرئيسي | C34: -25 | D34: 0 | E34: =D34-C34 -> 25 | G34: 1 | H34: محمد مصطفى | I34: 1200 | J34: Y | K34: 25 | P34: 158 | Q34: 25 | R34: 159 | S34: 25 | V34: 161 | W34: 25 | X34: 167 | Y34: 25 | Z34: 168 | AA34: 25
A35: 19 | B35: الخط الرئيسي | C35: 0 | D35: =D34+25 -> 25 | E35: 25 | G35: 2 | H35: محمد مصطفى | I35: 1200 | J35: Y | K35: 25 | P35: 146 | Q35: 25 | R35: 146 | S35: 25 | T35: 148 | U35: 25 | V35: 152 | W35: 25 | X35: 167 | Y35: 25 | Z35: 156 | AA35: 25 | AD35: 162 | AE35: 25
A36: 20 | B36: الخط الرئيسي | C36: 25 | D36: 50 | E36: 25 | G36: 2 | H36: محمد مصطفى | I36: 1200 | J36: Y | K36: 25 | P36: 146 | Q36: 25 | R36: 146 | S36: 25 | T36: 148 | U36: 25 | V36: 152 | W36: 25 | X36: 167 | Y36: 25 | Z36: 156 | AA36: 25 | AD36: 162 | AE36: 25
A37: 21 | B37: الخط الرئيسي | C37: 50 | D37: 75 | E37: 25 | G37: 2 | H37: محمد مصطفى | I37: 1200 | J37: Y | K37: 25 | P37: 146 | Q37: 25 | R37: 146 | S37: 25 | T37: 148 | U37: 25 | V37: 152 | W37: 25 | X37: 167 | Y37: 25 | Z37: 156 | AA37: 25 | AD37: 162 | AE37: 25
A38: 22 | B38: الخط الرئيسي | C38: 75 | D38: 100 | E38: 25 | G38: 2 | H38: محمد مصطفى | I38: 1200 | J38: Y | K38: 25 | P38: 146 | Q38: 25 | R38: 146 | S38: 25 | T38: 148 | U38: 25 | V38: 152 | W38: 25 | X38: 155 | Y38: 25 | Z38: 156 | AA38: 25 | AD38: 162 | AE38: 25
A39: 23 | B39: الخط الرئيسي | C39: 100 | D39: 125 | E39: 25 | G39: 2 | H39: محمد مصطفى | I39: 1200 | J39: Y | K39: 25 | P39: 146 | Q39: 25 | R39: 146 | S39: 25 | T39: 148 | U39: 25 | V39: 152 | W39: 25 | X39: 155 | Y39: 25 | Z39: 156 | AA39: 25 | AD39: 162 | AE39: 25
A40: 24 | B40: الخط الرئيسي | C40: 125 | D40: 150 | E40: 25 | G40: 2 | H40: محمد مصطفى | I40: 1200 | J40: Y | K40: 25 | P40: 146 | Q40: 25 | R40: 146 | S40: 25 | T40: 148 | U40: 25 | V40: 152 | W40: 25 | X40: 155 | Y40: 25 | Z40: 156 | AA40: 25 | AD40: 162 | AE40: 25
A41: 25 | B41: الخط الرئيسي | C41: 150 | D41: 175 | E41: 25 | G41: 2 | H41: محمد مصطفى | I41: 1200 | J41: Y | K41: 25 | P41: 146 | Q41: 25 | R41: 146 | S41: 25 | T41: 148 | U41: 25 | V41: 152 | W41: 25 | X41: 155 | Y41: 25 | Z41: 156 | AA41: 25 | AD41: 162 | AE41: 25
A42: 26 | B42: الخط الرئيسي | C42: 175 | D42: 200 | E42: 25 | G42: 2 | H42: محمد مصطفى | I42: 1200 | J42: Y | K42: 25 | P42: 146 | Q42: 25 | R42: 146 | S42: 25 | T42: 148 | U42: 25 | V42: 152 | W42: 25 | X42: 155 | Y42: 25 | Z42: 156 | AA42: 25 | AD42: 162 | AE42: 25
A43: 27 | B43: الخط الرئيسي | C43: 200 | D43: 215 | E43: 15 | G43: 2 | H43: محمد مصطفى | I43: 1200 | J43: Y | K43: 15 | P43: 146 | Q43: 15 | R43: 146 | S43: 15 | T43: 148 | U43: 15 | V43: 152 | W43: 15 | X43: 155 | Y43: 15 | Z43: 156 | AA43: 15 | AD43: 162 | AE43: 15 | AJ43: 2
A44: 28 | B44: الخط الرئيسي | C44: 215 | D44: 225 | E44: 10 | G44: 2 | H44: محمد مصطفى | I44: 1200 | J44: Y | K44: 10 | P44: 117 | Q44: 10 | R44: 117 | S44: 10 | T44: 148 | U44: 10 | V44: 152 | W44: 10 | X44: 154 | Y44: 10 | Z44: 156 | AA44: 10 | AD44: 162 | AE44: 10
A45: 29 | B45: الخط الرئيسي | C45: =C43+25 -> 225 | D45: =D44+25 -> 250 | E45: 25 | G45: 2 | H45: محمد مصطفى | I45: 1200 | J45: Y | K45: 25 | P45: 117 | Q45: 25 | R45: 117 | S45: 25 | T45: 137 | U45: 25 | V45: 138 | W45: 25 | X45: 154 | Y45: 25 | Z45: 156 | AA45: 25 | AF45: 163 | AG45: 25
A46: 30 | B46: الخط الرئيسي | C46: 250 | D46: 275 | E46: 25 | G46: 2 | H46: محمد مصطفى | I46: 1200 | J46: Y | K46: 25 | P46: 117 | Q46: 25 | R46: 117 | S46: 25 | T46: 137 | U46: 25 | V46: 138 | W46: 25 | X46: 145 | Y46: 25 | AF46: 163 | AG46: 25
A47: 31 | B47: الخط الرئيسي | C47: 275 | D47: 300 | E47: 25 | G47: 2 | H47: محمد مصطفى | I47: 1200 | J47: Y | K47: 25 | P47: 117 | Q47: 25 | R47: 117 | S47: 25 | T47: 137 | U47: 25 | V47: 138 | W47: 25 | X47: 145 | Y47: 25 | AD47: 151 | AE47: 25 | AF47: 163 | AG47: 25
A48: 32 | B48: الخط الرئيسي | C48: 300 | D48: 325 | E48: 25 | G48: 2 | H48: محمد مصطفى | I48: 1200 | J48: Y | K48: 25 | P48: 117 | Q48: 25 | R48: 117 | S48: 25 | T48: 128 | U48: 25 | V48: 131 | W48: 25 | X48: 145 | Y48: 25 | AD48: 151 | AE48: 25 | AF48: 163 | AG48: 25
A49: 33 | B49: الخط الرئيسي | C49: 325 | D49: 350 | E49: 25 | G49: 2 | H49: محمد مصطفى | I49: 1200 | J49: Y | K49: 25 | P49: 117 | Q49: 25 | R49: 117 | S49: 25 | T49: 128 | U49: 25 | V49: 131 | W49: 25 | X49: 145 | Y49: 25 | AD49: 151 | AE49: 25 | AF49: 163 | AG49: 25
A50: 34 | B50: الخط الرئيسي | C50: 350 | D50: 375 | E50: 25 | G50: 2 | H50: محمد مصطفى | I50: 1200 | J50: Y | K50: 25 | P50: 117 | Q50: 25 | R50: 117 | S50: 25 | T50: 128 | U50: 25 | V50: 131 | W50: 25 | X50: 145 | Y50: 25 | AD50: 151 | AE50: 25 | AF50: 163 | AG50: 25
A51: 35 | B51: الخط الرئيسي | C51: 375 | D51: 400 | E51: 25 | G51: 2 | H51: محمد مصطفى | I51: 1200 | J51: Y | K51: 25 | P51: 117 | Q51: 25 | R51: 117 | S51: 25 | T51: 128 | U51: 25 | V51: 131 | W51: 25 | X51: 145 | Y51: 25 | AD51: 151 | AE51: 25 | AF51: 163 | AG51: 25
A52: 36 | B52: الخط الرئيسي | C52: 400 | D52: 425 | E52: 25 | G52: 2 | H52: محمد مصطفى | I52: 1200 | J52: Y | K52: 25 | P52: 117 | Q52: 25 | R52: 117 | S52: 25 | T52: 128 | U52: 25 | V52: 131 | W52: 25 | X52: 145 | Y52: 25 | AD52: 151 | AE52: 25 | AF52: 163 | AG52: 25
A53: 37 | B53: الخط الرئيسي | C53: 425 | D53: 450 | E53: 25 | G53: 2 | H53: محمد مصطفى | I53: 1200 | J53: Y | K53: 25 | P53: 117 | Q53: 25 | R53: 117 | S53: 25 | T53: 128 | U53: 25 | V53: 131 | W53: 25 | X53: 145 | Y53: 25 | AD53: 151 | AE53: 25 | AF53: 163 | AG53: 25
A54: 38 | B54: الخط الرئيسي | C54: 450 | D54: 475 | E54: 25 | G54: 2 | H54: محمد مصطفى | I54: 1200 | J54: Y | K54: 25 | P54: 117 | Q54: 25 | R54: 117 | S54: 25 | T54: 128 | U54: 25 | V54: 131 | W54: 25 | X54: 145 | Y54: 25 | AD54: 151 | AE54: 25 | AF54: 163 | AG54: 25
A55: 39 | B55: الخط الرئيسي | C55: 475 | D55: 500 | E55: 25 | G55: 2 | H55: محمد مصطفى | I55: 1200 | J55: =IF(X55<>"","Y","N") -> Y | K55: 25 | P55: 115 | Q55: 25 | R55: 115 | S55: 25 | T55: 116 | U55: 25 | V55: 118 | W55: 25 | X55: 145 | Y55: 25 | AD55: 135 | AE55: 25 | AF55: 147 | AG55: 25
A56: 40 | B56: الخط الرئيسي | C56: 500 | D56: 525 | E56: 25 | G56: 2 | H56: محمد مصطفى | I56: 1200 | J56: Y | K56: 25 | P56: 115 | Q56: 25 | R56: 115 | S56: 25 | T56: 116 | U56: 25 | V56: 118 | W56: 25 | X56: 145 | Y56: 25 | AD56: 135 | AE56: 25 | AF56: 147 | AG56: 25
A57: 41 | B57: الخط الرئيسي | C57: 525 | D57: 550 | E57: 25 | G57: 2 | H57: محمد مصطفى | I57: 1200 | J57: Y | K57: 25 | P57: 115 | Q57: 25 | R57: 115 | S57: 25 | T57: 116 | U57: 25 | V57: 118 | W57: 25 | X57: 130 | Y57: 25 | AD57: 135 | AE57: 25 | AF57: 147 | AG57: 25
A58: 42 | B58: الخط الرئيسي | C58: 550 | D58: 575 | E58: 25 | G58: 2 | H58: محمد مصطفى | I58: 1200 | J58: Y | K58: 25 | P58: 115 | Q58: 25 | R58: 115 | S58: 25 | T58: 116 | U58: 25 | V58: 118 | W58: 25 | X58: 130 | Y58: 25 | AD58: 141 | AE58: 25 | AF58: 147 | AG58: 25
A59: 43 | B59: الخط الرئيسي | C59: 575 | D59: 600 | E59: 25 | G59: 2 | H59: محمد مصطفى | I59: 1200 | J59: Y | K59: 25 | P59: 115 | Q59: 25 | R59: 115 | S59: 25 | T59: 116 | U59: 25 | V59: 118 | W59: 25 | X59: 130 | Y59: 25 | AD59: 141 | AE59: 25 | AF59: 147 | AG59: 25
A60: 44 | B60: الخط الرئيسي | C60: 600 | D60: 616 | E60: 16 | G60: 2 | H60: محمد مصطفى | I60: 1200 | J60: Y | K60: 16 | P60: 115 | Q60: 16 | R60: 115 | S60: 16 | T60: 116 | U60: 16 | V60: 118 | W60: 16 | X60: 130 | Y60: 16 | AD60: 141 | AE60: 16 | AF60: 147 | AG60: 16
A61: 45 | B61: الخط الرئيسي | C61: 616 | D61: =D59+25 -> 625 | E61: 9 | G61: 2 | H61: محمد مصطفى | I61: 1200 | J61: N | K61: 0 | P61: 115 | Q61: 9 | R61: 115 | S61: 9 | T61: 116 | U61: 9 | V61: 118 | W61: 9 | AD61: 141 | AE61: 9 | AF61: 147 | AG61: 9
A62: 46 | B62: الخط الرئيسي | C62: 625 | D62: 650 | E62: 25 | G62: 2 | H62: محمد مصطفى | I62: 1200 | J62: Y | K62: 25 | P62: 115 | Q62: 25 | R62: 115 | S62: 25 | T62: 116 | U62: 25 | V62: 118 | W62: 25 | X62: 129 | Y62: 25 | Z62: 129 | AA62: 25 | AD62: 141 | AE62: 25 | AF62: 147 | AG62: 25
A63: 47 | B63: الخط الرئيسي | C63: 650 | D63: 675 | E63: 25 | G63: 2 | H63: محمد مصطفى | I63: 1200 | J63: Y | K63: 25 | P63: 115 | Q63: 25 | R63: 115 | S63: 25 | T63: 116 | U63: 25 | V63: 118 | W63: 25 | X63: 129 | Y63: 25 | Z63: 129 | AA63: 25 | AD63: 141 | AE63: 25 | AF63: 147 | AG63: 25
A64: 48 | B64: الخط الرئيسي | C64: 675 | D64: 700 | E64: 25 | G64: 2 | H64: محمد مصطفى | I64: 1200 | J64: Y | K64: 25 | P64: 115 | Q64: 25 | R64: 115 | S64: 25 | T64: 116 | U64: 25 | V64: 118 | W64: 25 | X64: 129 | Y64: 25 | Z64: 129 | AA64: 25 | AD64: 141 | AE64: 25 | AF64: 147 | AG64: 25
A65: 49 | B65: الخط الرئيسي | C65: 700 | D65: 725 | E65: 25 | G65: 1 | H65: محمد مصطفى | I65: 1200 | J65: Y | K65: 25 | P65: 106 | Q65: 25 | R65: 106 | S65: 25 | V65: 107 | W65: 25 | X65: 108 | Y65: 25 | AD65: 141 | AE65: 25 | AF65: 147 | AG65: 25
A66: 50 | B66: الخط الرئيسي | C66: 725 | D66: 750 | E66: 25 | G66: 1 | H66: محمد مصطفى | I66: 1200 | J66: Y | K66: 25 | P66: 106 | Q66: 25 | R66: 106 | S66: 25 | V66: 107 | W66: 25 | X66: 108 | Y66: 25 | AD66: 141 | AE66: 25 | AF66: 147 | AG66: 25
A67: 51 | B67: الخط الرئيسي | C67: 750 | D67: 775 | E67: 25 | G67: 1 | H67: محمد مصطفى | I67: 1200 | J67: Y | K67: 25 | P67: 106 | Q67: 25 | R67: 106 | S67: 25 | V67: 107 | W67: 25 | X67: 108 | Y67: 25 | AD67: 141 | AE67: 25 | AF67: 147 | AG67: 25
A68: 52 | B68: الخط الرئيسي | C68: 775 | D68: 784 | E68: 9 | G68: 1 | H68: محمد مصطفى | I68: 1200 | J68: Y | K68: 9 | P68: 106 | Q68: 9 | R68: 106 | S68: 9 | V68: 107 | W68: 9 | X68: 108 | Y68: 9 | AD68: 141 | AE68: 9 | AF68: 147 | AG68: 9
A69: 53 | B69: الخط الرئيسي | C69: 784 | D69: =D67+25 -> 800 | E69: 16 | G69: 2 | H69: محمد مصطفى | I69: 1200 | J69: Y | K69: 16 | P69: 102 | Q69: 16 | R69: 102 | S69: 16 | T69: 103 | U69: 16 | X69: 108 | Y69: 16 | AD69: 141 | AE69: 16 | AF69: 147 | AG69: 16
A70: 54 | B70: الخط الرئيسي | C70: 809 | D70: 814 | E70: 5 | G70: 2 | H70: محمد مصطفى | I70: 1200 | J70: Y | K70: 5 | P70: 102 | Q70: 5 | R70: 102 | S70: 5 | T70: 103 | U70: 5 | X70: 108 | Y70: 5 | AD70: 141 | AE70: 5 | AF70: 147 | AG70: 5
A71: 55 | B71: الخط الرئيسي | C71: 814 | D71: 824 | E71: 10 | H71: محمد مصطفى | I71: 1200 | J71: N | K71: 0
A72: التنفيذ (م.ط) | L72: =SUM(M17:M71) -> 44 | N72: =SUM(O17:O71) -> 0 | AH72: =SUM(AI17:AI71) -> 0 | AJ72: =SUM(AK17:AK71) -> 0 | AL72: =SUM(AM17:AM71) -> 0 | AN72: =SUM(AO17:AO71) -> 0 | AP72: =SUM(AQ17:AQ71) -> 0 | AR72: =SUM(AS17:AS71) -> 0 | AT72: =SUM(L74:AR74) -> 0
A73: نسبة البند
A74: الإجمالى | L74: =L73*L72 -> 0 | N74: =N73*N72 -> 0 | AH74: =AH73*AH72 -> 0 | AJ74: =AJ73*AJ72 -> 0 | AL74: =AL73*AL72 -> 0 | AN74: =AN73*AN72 -> 0 | AP74: =AP73*AP72 -> 0 | AR74: =AR73*AR72 -> 0
A75: 56 | B75: الخط الرئيسي | C75: 824 | D75: 850 | E75: 26 | G75: 0 | H75: عبود (متكامل) | I75: 1000 | J75: =IF(X75<>"","Y","N") -> Y | K75: =IF(J75="Y",E75,0) -> 26 | M75: =IF(L75<>"",E75,"") ->  | O75: =IF(N75<>"",E75,"") ->  | P75: 109 | Q75: =IF(P75<>"",E75,"") -> 26 | R75: 109 | S75: =IF(R75<>"",E75,"") -> 26 | U75: =IF(T75<>"",E75,"") ->  | W75: =IF(V75<>"",E75,"") ->  | X75: 110 | Y75: =IF(X75<>"",E75,"") -> 26 | AA75: =IF(Z75<>"",E75,"") ->  | AD75: 111 | AE75: =IF(AD75<>"",E75,"") -> 26 | AF75: 112 | AG75: =IF(AF75<>"",E75,"") -> 26 | AH75: 127 | AI75: =IF(AH75<>"",E75,"") -> 26 | AM75: =IF(AL75<>"",E75,"") ->  | AO75: =IF(AN75<>"",E75,"") ->  | AQ75: =IF(AP75<>"",E75,"") ->  | AS75: =IF(AR75<>"",E75,"") -> 
C76: 850 | D76: 875 | E76: 25 | G76: 0 | I76: 1000 | J76: =IF(X76<>"","Y","N") -> Y | K76: =IF(J76="Y",E76,0) -> 25 | P76: 109 | Q76: 25 | R76: 109 | S76: 25 | X76: 110 | Y76: 25 | AD76: 111 | AE76: 25 | AF76: 112 | AG76: 25 | AH76: 127 | AI76: 25
A77: 57 | B77: الخط الرئيسي | C77: 875 | D77: 900 | E77: 25 | G77: 0 | H77: عبود (متكامل) | I77: 1000 | J77: =IF(X77<>"","Y","N") -> Y | K77: =IF(J77="Y",E77,0) -> 25 | P77: 109 | Q77: 25 | R77: 109 | S77: 25 | X77: 110 | Y77: 25 | AD77: 111 | AE77: 25 | AF77: 112 | AG77: 25 | AH77: 127 | AI77: 25 | AM77: =IF(AL77<>"",E77,"") -> 
A78: 58 | B78: الخط الرئيسي | C78: =C77+25 -> 900 | D78: 925 | E78: 25 | G78: 0 | H78: عبود (متكامل) | I78: 1000 | J78: Y | K78: 25 | P78: 109 | Q78: 25 | R78: 109 | S78: 25 | X78: 110 | Y78: 25 | AD78: 111 | AE78: 25 | AF78: 112 | AG78: 25 | AH78: 127 | AI78: 25
A79: 59 | B79: الخط الرئيسي | C79: 925 | D79: 950 | E79: 25 | G79: 1 | H79: عبود (متكامل) | I79: 1000 | J79: Y | K79: 25 | P79: 113 | Q79: 25 | R79: 113 | S79: 25 | V79: 114 | W79: 25 | X79: 122 | Y79: =IF(X79<>"",E79,"") -> 25 | AD79: 132 | AE79: 25 | AF79: 140 | AG79: 25
A80: 60 | B80: الخط الرئيسي | C80: 950 | D80: 975 | E80: 25 | G80: 1 | H80: عبود (متكامل) | I80: 1000 | J80: Y | K80: 25 | P80: 113 | Q80: 25 | R80: 113 | S80: 25 | V80: 114 | W80: 25 | X80: 122 | Y80: 25 | AD80: 132 | AE80: 25 | AF80: 140 | AG80: 25
A81: 61 | B81: الخط الرئيسي | C81: 975 | D81: 1000 | E81: 25 | G81: 1 | H81: عبود (متكامل) | I81: 1000 | J81: Y | K81: 25 | P81: 113 | Q81: 25 | R81: 113 | S81: 25 | V81: 114 | W81: 25 | X81: 122 | Y81: 25 | AD81: 132 | AE81: 25 | AF81: 140 | AG81: 25
A82: 62 | B82: الخط الرئيسي | C82: 1000 | D82: 1025 | E82: 25 | G82: 1 | H82: عبود (متكامل) | I82: 1000 | J82: Y | K82: 25 | P82: 113 | Q82: 25 | R82: 113 | S82: 25 | V82: 114 | W82: 25 | X82: 122 | Y82: 25 | AD82: 132 | AE82: 25 | AF82: 140 | AG82: 25
A83: 63 | B83: الخط الرئيسي | C83: =C82+25 -> 1025 | D83: =D82+25 -> 1050 | E83: 25 | H83: عبود (متكامل) | I83: 1000 | J83: Y | K83: 25 | P83: 48 | Q83: 25 | R83: 119 | S83: 25 | T83: 120 | U83: 25 | V83: 126 | W83: 25 | X83: 188 | Y83: =IF(X83<>"",E83,"") -> 25 | Z83: 189 | AA83: 25
A84: 64 | B84: الخط الرئيسي | C84: 1050 | D84: 1075 | E84: 25 | H84: عبود (متكامل) | I84: 1000 | J84: Y | K84: 25 | N84: 71 | O84: 25 | P84: 48 | Q84: 25 | R84: 119 | S84: 25 | T84: 120 | U84: 25 | V84: 126 | W84: 25 | X84: 188 | Y84: 25 | Z84: 189 | AA84: 25 | AC84: =IF(AB84<>"",E84,"") ->  | AK84: =IF(AJ84<>"",E84,"") -> 
A85: 65 | B85: الخط الرئيسي | C85: 1075 | D85: 1100 | E85: 25 | H85: عبود (متكامل) | I85: 1000 | J85: Y | K85: 25 | N85: 71 | O85: 25 | Q85: =IF(P85<>"",E85,"") ->  | R85: 123 | S85: =IF(R85<>"",E85,"") -> 25 | X85: 188 | Y85: 25 | Z85: 189 | AA85: 25
A86: 66 | B86: الخط الرئيسي | C86: 1100 | D86: 1125 | E86: =D86-C86 -> 25 | H86: عبود (متكامل) | I86: 1000 | J86: Y | K86: 25 | N86: 71 | O86: 25 | R86: 123 | S86: 25 | X86: 188 | Y86: 25 | Z86: 189 | AA86: 25 | AG86: =IF(AF86<>"",E86,"") -> 
A87: 67 | B87: الخط الرئيسي | C87: 1125 | D87: 1150 | E87: 25 | H87: عبود (متكامل) | I87: 1000 | J87: Y | K87: 25 | N87: 71 | O87: 25 | R87: 123 | S87: 25 | X87: 188 | Y87: 25 | Z87: 189 | AA87: 25
A88: 68 | B88: الخط الرئيسي | C88: 1150 | D88: 1175 | E88: 25 | H88: عبود (متكامل) | I88: 1000 | J88: Y | K88: 25 | N88: 71 | O88: 25 | R88: 123 | S88: 25 | X88: 188 | Y88: 25 | Z88: 189 | AA88: 25 | AI88: =IF(AH88<>"",E88,"") -> 
A89: 69 | B89: الخط الرئيسي | C89: 1175 | D89: 1200 | E89: 25 | H89: عبود (متكامل) | I89: 1000 | J89: Y | K89: 25 | N89: 71 | O89: 25 | R89: 123 | S89: 25 | X89: 188 | Y89: 25 | Z89: 189 | AA89: 25
A90: 70 | B90: الخط الرئيسي | C90: 1200 | D90: 1225 | E90: 25 | H90: عبود (متكامل) | I90: 1000 | J90: N | K90: 0 | N90: 71 | O90: 25 | R90: 190 | S90: 25 | Z90: 207 | AA90: 25
A91: 71 | B91: الخط الرئيسي | C91: 1225 | D91: 1250 | E91: 25 | H91: عبود (متكامل) | I91: 1000 | J91: N | K91: 0 | N91: 71 | O91: 25 | R91: 190 | S91: 25 | Z91: 207 | AA91: 25
A92: 72 | B92: الخط الرئيسي | C92: 1250 | D92: 1275 | E92: 25 | H92: عبود (متكامل) | I92: 1000 | J92: N | K92: 0 | N92: 71 | O92: 25 | R92: 190 | S92: 25 | Z92: 207 | AA92: 25
A93: 73 | B93: الخط الرئيسي | C93: 1275 | D93: 1300 | E93: 25 | H93: عبود (متكامل) | I93: 1000 | J93: N | K93: 0 | N93: 71 | O93: 25 | R93: 190 | S93: 25 | Z93: 207 | AA93: 25
A94: 74 | B94: الخط الرئيسي | C94: 1300 | D94: 1325 | E94: 25 | H94: عبود (متكامل) | I94: 1000 | J94: N | K94: 0 | N94: 71 | O94: 25 | R94: 190 | S94: 25 | Z94: 215-1 | AA94: 25
A95: 75 | B95: الخط الرئيسي | C95: 1325 | D95: 1350 | E95: 25 | H95: عبود (متكامل) | I95: 1000 | J95: N | K95: 0 | N95: 71 | O95: 25 | R95: 190 | S95: 25 | Z95: 215-1 | AA95: 25
A96: 76 | B96: الخط الرئيسي | C96: 1350 | D96: 1375 | E96: 25 | H96: عبود (متكامل) | I96: 1000 | J96: N | K96: 0 | N96: 71 | O96: 25 | Z96: 215-1 | AA96: 25
A97: 77 | B97: الخط الرئيسي | C97: 1375 | D97: 1400 | E97: 25 | H97: عبود (متكامل) | I97: 1000 | J97: N | K97: 0 | N97: 71 | O97: 25 | S97: =IF(R97<>"",E97,"") -> 
A98: 78 | B98: الخط الرئيسي | C98: 1400 | D98: 1425 | E98: 25 | H98: عبود (متكامل) | I98: 1000 | J98: N | K98: 0 | N98: 71 | O98: 25
A99: 79 | B99: الخط الرئيسي | C99: 1425 | D99: 1450 | E99: 25 | H99: عبود (متكامل) | I99: 1000 | J99: N | K99: 0 | N99: 71 | O99: 25
A100: 80 | B100: الخط الرئيسي | C100: 1450 | D100: 1475 | E100: 25 | H100: عبود (متكامل) | I100: 1000 | J100: N | K100: 0 | N100: 71 | O100: 25
A101: 81 | B101: الخط الرئيسي | C101: 1475 | D101: 1500 | E101: 25 | H101: عبود (متكامل) | I101: 1000 | J101: N | K101: 0 | N101: 71 | O101: 25
A102: 82 | B102: الخط الرئيسي | C102: 1500 | D102: 1525 | E102: 25 | H102: عبود (متكامل) | I102: 1000 | J102: N | K102: 0 | N102: 71 | O102: 25
A103: 83 | B103: الخط الرئيسي | C103: 1525 | D103: 1550 | E103: 25 | H103: عبود (متكامل) | I103: 1000 | J103: N | K103: 0 | N103: 71 | O103: 25
A104: 84 | B104: الخط الرئيسي | C104: 1550 | D104: 1575 | E104: 25 | H104: عبود (متكامل) | I104: 1000 | J104: N | K104: 0 | N104: 71 | O104: 25
A105: 85 | B105: الخط الرئيسي | C105: 1575 | D105: 1600 | E105: 25 | H105: عبود (متكامل) | I105: 1000 | J105: N | K105: 0 | N105: 71 | O105: 25
A106: 86 | B106: الخط الرئيسي | C106: 1600 | D106: 1625 | E106: 25 | H106: عبود (متكامل) | I106: 1000 | J106: N | K106: 0 | N106: 71 | O106: 25
A107: 87 | B107: الخط الرئيسي | C107: 1625 | D107: 1650 | E107: 25 | H107: عبود (متكامل) | I107: 1000 | J107: N | K107: 0 | N107: 71 | O107: 25
A108: 88 | B108: الخط الرئيسي | C108: 1650 | D108: 1675 | E108: 25 | H108: عبود (متكامل) | I108: 1000 | J108: N | K108: 0 | N108: 71 | O108: 25
A109: 89 | B109: الخط الرئيسي | C109: 1675 | D109: 1700 | E109: 25 | H109: عبود (متكامل) | I109: 1000 | J109: N | K109: 0 | N109: 71 | O109: 25
A110: 90 | B110: الخط الرئيسي | C110: 1700 | D110: 1725 | E110: 25 | H110: عبود (متكامل) | I110: 1000 | J110: N | K110: 0 | N110: 71 | O110: 25
A111: 91 | B111: الخط الرئيسي | C111: 1725 | D111: 1750 | E111: 25 | H111: عبود (متكامل) | I111: 1000 | J111: N | K111: 0 | N111: 71 | O111: 25
A112: 92 | B112: الخط الرئيسي | C112: 1750 | D112: 1775 | E112: 25 | H112: عبود (متكامل) | I112: 1000 | J112: N | K112: 0 | N112: 71 | O112: 25
A113: 93 | B113: الخط الرئيسي | C113: 1775 | D113: 1800 | E113: 25 | H113: عبود (متكامل) | I113: 1000 | J113: N | K113: 0 | N113: 71 | O113: 25
A114: 94 | B114: الخط الرئيسي | C114: 1800 | D114: 1825 | E114: 25 | H114: عبود (متكامل) | I114: 1000 | J114: N | K114: 0 | N114: 71 | O114: 25
A115: 95 | B115: الخط الرئيسي | C115: 1825 | D115: 1838.56 | E115: 13.56 | H115: عبود (متكامل) | I115: 1000 | J115: N | K115: 0 | N115: 71 | O115: 13.56 | P115: 50 | Q115: 13.56 | R115: 50 | S115: 13.56
A116: 96 | B116: الخط الرئيسي | C116: 1838.56 | D116: 1850 | E116: 11.44 | G116: 1 | H116: عبود (متكامل) | I116: 1000 | J116: Y | K116: 11.44 | P116: 50 | Q116: 11.44 | R116: 50 | S116: 11.44 | V116: 52 | W116: 11.44 | X116: 69 | Y116: 11.44
A117: 97 | B117: الخط الرئيسي | C117: 1850 | D117: 1875 | E117: 25 | G117: 1 | H117: عبود (متكامل) | I117: 1000 | J117: Y | K117: 25 | P117: 50 | Q117: 25 | R117: 50 | S117: 25 | V117: 52 | W117: 25 | X117: 69 | Y117: 25
A118: 98 | B118: الخط الرئيسي | C118: =C117+25 -> 1875 | D118: 1900 | E118: 25 | G118: 2 | H118: عبود (متكامل) | I118: 1000 | J118: Y | K118: 25 | P118: 49 | Q118: 25 | R118: 49 | S118: 25 | V118: 51 | W118: 25 | X118: 69 | Y118: 25
A119: 99 | B119: الخط الرئيسي | C119: 1900 | D119: 1925 | E119: 25 | G119: 2 | H119: عبود (متكامل) | I119: 1000 | J119: Y | K119: 25 | P119: 49 | Q119: 25 | R119: 49 | S119: 25 | V119: 51 | W119: 25 | X119: 69 | Y119: 25
A120: 100 | B120: الخط الرئيسي | C120: 1925 | D120: 1950 | E120: 25 | G120: 0 | H120: عبود (متكامل) | I120: 1000 | J120: Y | K120: 25 | P120: 48 | Q120: 25 | R120: 48 | S120: 25 | X120: 69 | Y120: 25 | AE120: =IF(AD120<>"",E120,"") -> 
A121: 101 | B121: الخط الرئيسي | C121: =C120+25 -> 1950 | D121: 1969.78 | E121: 19.78 | G121: 0 | H121: عبود (متكامل) | I121: 1000 | J121: Y | K121: 19.78 | P121: 48 | Q121: 19.78 | R121: 48 | S121: 19.78 | X121: 69 | Y121: 19.78
A122: 102 | B122: الخط الرئيسي | C122: 1969.78 | D122: 1975 | E122: 5.22 | H122: عبود (متكامل) | I122: 1000 | J122: N | K122: 0
A123: 103 | B123: الخط الرئيسي | C123: 1975 | D123: 1978.2 | E123: 3.2 | H123: عبود (متكامل) | I123: 1000 | J123: N | K123: 0
A124: 104 | B124: الخط الرئيسي | C124: 1978.2 | D124: 2000 | E124: 21.8 | G124: 0 | H124: عبود (متكامل) | I124: 1000 | J124: Y | K124: 21.8 | P124: 45 | Q124: 21.8 | R124: 45 | S124: 21.8 | X124: 46 | Y124: 21.8 | AD124: 57 | AE124: 21.8
A125: 105 | B125: الخط الرئيسي | C125: 2000 | D125: 2025 | E125: 25 | I125: 1000 | J125: Y | K125: 25 | P125: 45 | Q125: 25 | R125: 45 | S125: 25 | X125: 46 | Y125: 25 | AD125: 57 | AE125: 25
A126: 106 | B126: الخط الرئيسي | C126: 2025 | D126: 2050 | E126: 25 | G126: 0 | H126: عبود (متكامل) | I126: 1000 | J126: Y | K126: 25 | P126: 45 | Q126: 25 | R126: 45 | S126: 25 | X126: 46 | Y126: 25 | AD126: 57 | AE126: 25
A127: 107 | B127: الخط الرئيسي | C127: =C126+25 -> 2050 | D127: 2075 | E127: 25 | G127: 0 | H127: عبود (متكامل) | I127: 1000 | J127: Y | K127: 25 | P127: 45 | Q127: 25 | R127: 45 | S127: 25 | X127: 46 | Y127: 25 | AD127: 57 | AE127: 25
A128: 108 | B128: الخط الرئيسي | C128: 2075 | D128: 2100 | E128: 25 | G128: 0 | H128: عبود (متكامل) | I128: 1000 | J128: Y | K128: 25 | P128: 45 | Q128: 25 | R128: 45 | S128: 25 | X128: 46 | Y128: 25 | AD128: 57 | AE128: 25
A129: 109 | B129: الخط الرئيسي | C129: 2100 | D129: 2125 | E129: 25 | G129: 0 | H129: عبود (متكامل) | I129: 1000 | J129: Y | K129: 25 | P129: 45 | Q129: 25 | R129: 45 | S129: 25 | X129: 46 | Y129: 25 | AD129: 57 | AE129: 25
A130: 110 | B130: الخط الرئيسي | C130: =C129+25 -> 2125 | D130: =D129+25 -> 2150 | E130: 25 | G130: 0 | H130: عبود (متكامل) | I130: 1000 | J130: Y | K130: 25 | P130: 43 | Q130: 25 | R130: 43 | S130: 25 | X130: 44 | Y130: 25 | AD130: 57 | AE130: 25
A131: 111 | B131: الخط الرئيسي | C131: 2150 | D131: 2175 | E131: 25 | G131: 0 | H131: عبود (متكامل) | I131: 1000 | J131: Y | K131: 25 | P131: 43 | Q131: 25 | R131: 43 | S131: 25 | X131: 44 | Y131: 25 | AD131: 57 | AE131: 25
A132: 112 | B132: الخط الرئيسي | C132: 2175 | D132: 2200 | E132: 25 | G132: 0 | H132: عبود (متكامل) | I132: 1000 | J132: Y | K132: 25 | P132: 43 | Q132: 25 | R132: 43 | S132: 25 | X132: 44 | Y132: 25 | AD132: 57 | AE132: 25
A133: 113 | B133: الخط الرئيسي | C133: 2200 | D133: 2225 | E133: 25 | G133: 0 | H133: عبود (متكامل) | I133: 1000 | J133: Y | K133: 25 | P133: 43 | Q133: 25 | R133: 43 | S133: 25 | X133: 44 | Y133: 25 | AD133: 57 | AE133: 25
A134: 114 | B134: الخط الرئيسي | C134: 2225 | D134: 2250 | E134: 25 | G134: 0 | H134: عبود (متكامل) | I134: 1000 | J134: Y | K134: 25 | P134: 43 | Q134: 25 | R134: 43 | S134: 25 | X134: 44 | Y134: 25 | AD134: 57 | AE134: 25
A135: 115 | B135: الخط الرئيسي | C135: 2250 | D135: 2275 | E135: 25 | G135: 0 | H135: عبود (متكامل) | I135: 1000 | J135: Y | K135: 25 | P135: 43 | Q135: 25 | R135: 43 | S135: 25 | X135: 44 | Y135: 25 | AD135: 57 | AE135: 25
A136: 116 | B136: الخط الرئيسي | C136: 2275 | D136: 2278.87 | E136: 3.87 | G136: 0 | H136: عبود (متكامل) | I136: 1000 | J136: Y | K136: 3.87 | P136: 37 | Q136: 3.87 | R136: 37 | S136: 3.87 | X136: 44 | Y136: 3.87 | AD136: 57 | AE136: 3.87
A137: 117 | B137: الخط الرئيسي | C137: 2278.87 | D137: 2300 | E137: 21.13 | G137: 0 | H137: عبود (متكامل) | I137: 1000 | J137: N | K137: 0 | P137: 37 | Q137: 21.13 | R137: 37 | S137: 21.13
B138: الخط الرئيسي | C138: 2300 | D138: 2325 | E138: 25 | I138: 1000 | J138: =IF(X138<>"","Y","N") -> Y | K138: =IF(J138="Y",E138,0) -> 25 | P138: 38 | Q138: =IF(P138<>"",E138,"") -> 25 | R138: 38 | S138: =IF(R138<>"",E138,"") -> 25 | X138: 45 | Y138: =IF(X138<>"",E138,"") -> 25
A139: 118 | B139: الخط الرئيسي | C139: 2325 | D139: 2350 | E139: 25 | G139: 0 | H139: عبود (متكامل) | I139: 1000 | J139: Y | K139: 25 | P139: 37 | Q139: 25 | R139: 37 | S139: 25 | X139: 44 | Y139: 25
A140: 119 | B140: الخط الرئيسي | C140: =C139+25 -> 2350 | D140: =D139+25 -> 2375 | E140: 25 | G140: 0 | H140: عبود (متكامل) | I140: 1000 | J140: Y | K140: 25 | P140: 37 | Q140: 25 | R140: 37 | S140: 25 | X140: 44 | Y140: 25
A141: 120 | B141: الخط الرئيسي | C141: =C140+25 -> 2375 | D141: =D140+25 -> 2400 | E141: 25 | G141: 0 | H141: عبود (متكامل) | I141: 1000 | J141: Y | K141: 25 | P141: 41 | Q141: 25 | R141: 41 | S141: 25 | X141: 42 | Y141: 25
A142: 121 | B142: الخط الرئيسي | C142: 2400 | D142: 2425 | E142: 25 | G142: 0 | H142: عبود (متكامل) | I142: 1000 | J142: Y | K142: =IF(J142="Y",E142,0) -> 25 | M142: =IF(L142<>"",E142,"") ->  | O142: =IF(N142<>"",E142,"") ->  | P142: 41 | Q142: 25 | R142: 41 | S142: 25 | U142: =IF(T142<>"",E142,"") ->  | W142: =IF(V142<>"",E142,"") ->  | X142: 42 | Y142: 25 | AA142: =IF(Z142<>"",E142,"") ->  | AD142: 54 | AE142: 25 | AK142: =IF(AJ142<>"",E142,"") ->  | AO142: =IF(AN142<>"",E142,"") ->  | AQ142: =IF(AP142<>"",E142,"") ->  | AS142: =IF(AR142<>"",E142,"") -> 
A143: 122 | B143: الخط الرئيسي | C143: 2425 | D143: 2450 | E143: 25 | G143: 0 | H143: عبود (متكامل) | I143: 1000 | J143: Y | K143: 25 | P143: 41 | Q143: 25 | R143: 41 | S143: 25 | X143: 42 | Y143: 25 | AD143: 54 | AE143: 25 | AM143: =IF(AL143<>"",E143,"") -> 
A144: 123 | B144: الخط الرئيسي | C144: 2450 | D144: 2475 | E144: 25 | G144: 0 | H144: عبود (متكامل) | I144: 1000 | J144: =IF(X144<>"","Y","N") -> Y | K144: 25 | P144: 41 | Q144: 25 | R144: 41 | S144: 25 | X144: 42 | Y144: 25 | AD144: 54 | AE144: 25
A145: 124 | B145: الخط الرئيسي | C145: 2475 | D145: 2500 | E145: 25 | G145: 0 | H145: عبود (متكامل) | I145: 1000 | J145: Y | K145: 25 | P145: 41 | Q145: 25 | R145: 41 | S145: 25 | X145: 42 | Y145: 25 | AD145: 54 | AE145: 25
A146: 125 | B146: الخط الرئيسي | C146: 2500 | D146: 2525 | E146: 25 | G146: 0 | H146: عبود (متكامل) | I146: 1000 | J146: Y | K146: 25 | P146: 41 | Q146: 25 | R146: 41 | S146: 25 | X146: 42 | Y146: 25 | AD146: 54 | AE146: 25
A147: 126 | B147: الخط الرئيسي | C147: 2525 | D147: 2550 | E147: 25 | G147: 0 | H147: عبود (متكامل) | I147: 1000 | J147: Y | K147: 25 | P147: 41 | Q147: 25 | R147: 41 | S147: 25 | X147: 42 | Y147: 25 | AD147: 54 | AE147: 25
A148: 127 | B148: الخط الرئيسي | C148: 2550 | D148: 2575 | E148: 25 | G148: 0 | H148: عبود (متكامل) | I148: 1000 | J148: Y | K148: 25 | P148: 41 | Q148: 25 | R148: 41 | S148: 25 | X148: 42 | Y148: =IF(X148<>"",E148,"") -> 25 | AD148: 54 | AE148: 25
A149: 128 | B149: الخط الرئيسي | C149: 2575 | D149: 2600 | E149: 25 | G149: 0 | H149: عبود (متكامل) | I149: 1000 | J149: Y | K149: 25 | P149: 41 | Q149: 25 | R149: 41 | S149: 25 | X149: 42 | Y149: 25 | AD149: 54 | AE149: 25
A150: 129 | B150: الخط الرئيسي | C150: 2600 | D150: 2625 | E150: 25 | G150: 0 | H150: عبود (متكامل) | I150: 1000 | J150: Y | K150: 25 | P150: 41 | Q150: =IF(P150<>"",E150,"") -> 25 | R150: 41 | S150: 25 | X150: 42 | Y150: 25 | AD150: 54 | AE150: =IF(AD150<>"",E150,"") -> 25
A151: 130 | B151: الخط الرئيسي | C151: 2625 | D151: 2650 | E151: 25 | G151: 0 | H151: عبود (متكامل) | I151: 1000 | J151: Y | K151: 25 | P151: 41 | Q151: 25 | R151: 41 | S151: 25 | X151: 42 | Y151: 25 | AD151: 54 | AE151: 25
A152: 131 | B152: الخط الرئيسي | C152: 2650 | D152: 2675 | E152: =D152-C152 -> 25 | G152: 0 | H152: عبود (متكامل) | I152: 1000 | J152: Y | K152: 25 | P152: 41 | Q152: 25 | R152: 41 | S152: 25 | X152: 42 | Y152: 25 | AD152: 54 | AE152: 25
A153: 132 | B153: الخط الرئيسي | C153: 2675 | D153: 2700 | E153: 25 | G153: 0 | H153: عبود (متكامل) | I153: 1000 | J153: Y | K153: 25 | P153: 41 | Q153: 25 | R153: 41 | S153: 25 | X153: 42 | Y153: 25 | AD153: 54 | AE153: 25
A154: 133 | B154: الخط الرئيسي | C154: 2700 | D154: 2725 | E154: 25 | G154: 0 | H154: عبود (متكامل) | I154: 1000 | J154: Y | K154: 25 | P154: 41 | Q154: 25 | R154: 41 | S154: 25 | X154: 42 | Y154: 25 | AD154: 54 | AE154: 25
A155: 134 | B155: الخط الرئيسي | C155: 2725 | D155: 2750 | E155: 25 | H155: عبود (متكامل) | I155: 1000 | J155: Y | K155: 25 | Q155: =IF(P155<>"",E155,"") ->  | S155: =IF(R155<>"",E155,"") ->  | X155: 67
A156: 135 | B156: الخط الرئيسي | C156: 2750 | D156: 2775 | E156: 25 | H156: عبود (متكامل) | I156: 1000 | J156: Y | K156: 25 | X156: 67
A157: 136 | B157: الخط الرئيسي | C157: 2775 | D157: 2800 | E157: 25 | H157: عبود (متكامل) | I157: 1000 | J157: Y | K157: 25 | X157: 67
A158: 137 | B158: الخط الرئيسي | C158: 2800 | D158: 2825 | E158: 25 | H158: عبود (متكامل) | I158: 1000 | J158: Y | K158: 25 | P158: 47 | Q158: 100 | R158: 47 | S158: 100 | V158: 63 | W158: 125 | X158: 67 | Y158: 75
A159: 138 | B159: الخط الرئيسي | C159: 2825 | D159: 2850 | E159: 25 | G159: 1 | H159: عبود (متكامل) | I159: 1000 | J159: Y | K159: 25 | P159: 47 | R159: 47 | V159: 63 | X159: 67
A160: 139 | B160: الخط الرئيسي | C160: 2850 | D160: 2875 | E160: 25 | G160: 1 | H160: عبود (متكامل) | I160: 1000 | J160: Y | K160: 25 | P160: 47 | R160: 47 | V160: 63 | X160: 67
A161: 140 | B161: الخط الرئيسي | C161: 2875 | D161: 2900 | E161: 25 | G161: 1 | H161: عبود (متكامل) | I161: 1000 | J161: Y | K161: 25 | P161: 47 | R161: 47 | V161: 63 | X161: 68 | Y161: 175
A162: 141 | B162: الخط الرئيسي | C162: 2900 | D162: 2925 | E162: 25 | G162: 1 | H162: عبود (متكامل) | I162: 1000 | J162: Y | K162: 25 | P162: 58 | Q162: 175 | R162: 58 | S162: 175 | V162: 63 | X162: 68
A163: 142 | B163: الخط الرئيسي | C163: 2925 | D163: 2950 | E163: 25 | G163: 1 | H163: عبود (متكامل) | I163: 1000 | J163: Y | K163: 25 | P163: 58 | R163: 58 | V163: 64 | W163: 150 | X163: 68
A164: 143 | B164: الخط الرئيسي | C164: 2950 | D164: 2975 | E164: 25 | G164: 1 | H164: عبود (متكامل) | I164: 1000 | J164: Y | K164: 25 | P164: 58 | R164: 58 | V164: 64 | X164: 68
A165: 144 | B165: الخط الرئيسي | C165: 2975 | D165: 3000 | E165: 25 | G165: 1 | H165: عبود (متكامل) | I165: 1000 | J165: Y | K165: 25 | P165: 58 | R165: 58 | V165: 64 | X165: 68
A166: 145 | B166: الخط الرئيسي | C166: 3000 | D166: 3025 | E166: 25 | G166: 1 | H166: عبود (متكامل) | I166: 1000 | J166: Y | K166: 25 | P166: 58 | R166: 58 | V166: 64 | X166: 68
A167: 146 | B167: الخط الرئيسي | C167: 3025 | D167: 3050 | E167: 25 | G167: 1 | H167: عبود (متكامل) | I167: 1000 | J167: Y | K167: 25 | P167: 58 | R167: 58 | V167: 64 | X167: 68
A168: 147 | B168: الخط الرئيسي | C168: =C167+25 -> 3050 | D168: =D167+25 -> 3075 | E168: 25 | H168: عبود (متكامل) | I168: 1000 | J168: N | K168: 0 | P168: 58 | R168: 58 | V168: 64 | Y168: =IF(X168<>"",E168,"") -> 
A169: 148 | B169: الخط الرئيسي | C169: 3075 | D169: 3100 | E169: 25 | H169: عبود (متكامل) | I169: 1000 | J169: N | K169: 0
A170: 149 | B170: الخط الرئيسي | C170: 3100 | D170: 3125 | E170: 25 | H170: عبود (متكامل) | I170: 1000 | J170: N | K170: 0
A171: 150 | B171: الخط الرئيسي | C171: 3125 | D171: 3150 | E171: 25 | H171: عبود (متكامل) | I171: 1000 | J171: N | K171: 0
A172: 151 | B172: الخط الرئيسي | C172: 3150 | D172: 3175 | E172: 25 | H172: عبود (متكامل) | I172: 1000 | J172: N | K172: 0
A173: 152 | B173: الخط الرئيسي | C173: 3175 | D173: 3200 | E173: 25 | H173: عبود (متكامل) | I173: 1000 | J173: N | K173: 0
A174: 153 | B174: الخط الرئيسي | C174: 3200 | D174: 3225 | E174: 25 | H174: عبود (متكامل) | I174: 1000 | J174: N | K174: 0
A175: 154 | B175: الخط الرئيسي | C175: 3225 | D175: 3250 | E175: 25 | H175: عبود (متكامل) | I175: 1000 | J175: N | K175: 0
A176: 155 | B176: الخط الرئيسي | C176: 3250 | D176: 3275 | E176: 25 | H176: عبود (متكامل) | I176: 1000 | J176: N | K176: 0 | AC176: =IF(AB176<>"",E176,"") ->  | AE176: =IF(AD176<>"",E176,"") ->  | AG176: =IF(AF176<>"",E176,"") ->  | AI176: =IF(AH176<>"",E176,"") -> 
A177: 156 | B177: الخط الرئيسي | C177: 3275 | D177: 3285 | E177: 10 | H177: عبود (متكامل) | I177: 1000 | J177: N | K177: =IF(J177="Y",E177,0) -> 0
A178: التنفيذ (م.ط) | L178: =SUM(M75:M177) -> 0 | AF178: =SUM(AG75:AG177) -> 201 | AH178: =SUM(AI75:AI177) -> 101 | AJ178: =SUM(AK75:AK177) -> 0 | AL178: =SUM(AM75:AM177) -> 0 | AN178: =SUM(AO75:AO177) -> 0 | AP178: =SUM(AQ75:AQ177) -> 0 | AR178: =SUM(AS75:AS177) -> 0 | AT178: =SUM(L180:AR180) -> 0
A179: نسبة البند | L179: =M179 -> 0 | AF179: =AG179 -> 0 | AH179: =AI179 -> 0 | AJ179: =AK179 -> 0 | AL179: =AM179 -> 0 | AN179: =AO179 -> 0 | AP179: =AQ179 -> 0 | AR179: =AS179 -> 0
A180: الإجمالى | L180: =L179*L178 -> 0 | AF180: =AF179*AF178 -> 0 | AH180: =AH179*AH178 -> 0 | AJ180: =AJ179*AJ178 -> 0 | AL180: =AL179*AL178 -> 0 | AN180: =AN179*AN178 -> 0 | AP180: =AP179*AP178 -> 0 | AR180: =AR179*AR178 -> 0
A181: 157 | B181: الخط الرئيسي | C181: 3285 | D181: =D176+25 -> 3300 | E181: 15 | H181: عبود (متكامل) | I181: 900 | J181: N | K181: 0 | M181: =IF(L181<>"",E181,"") ->  | O181: =IF(N181<>"",E181,"") ->  | Q181: =IF(P181<>"",E181,"") ->  | S181: =IF(R181<>"",E181,"") ->  | U181: =IF(T181<>"",E181,"") ->  | W181: =IF(V181<>"",E181,"") ->  | Y181: =IF(X181<>"",E181,"") ->  | AA181: =IF(Z181<>"",E181,"") ->  | AC181: =IF(AB181<>"",E181,"") ->  | AE181: =IF(AD181<>"",E181,"") ->  | AG181: =IF(AF181<>"",E181,"") ->  | AI181: =IF(AH181<>"",E181,"") ->  | AK181: =IF(AJ181<>"",E181,"") ->  | AM181: =IF(AL181<>"",E181,"") ->  | AO181: =IF(AN181<>"",E181,"") ->  | AQ181: =IF(AP181<>"",E181,"") ->  | AS181: =IF(AR181<>"",E181,"") -> 
A182: 158 | B182: الخط الرئيسي | C182: 3300 | D182: 3325 | E182: 25 | H182: عبود (متكامل) | I182: 900 | J182: N | K182: 0 | AM182: =IF(AL182<>"",E182,"") -> 
A183: 159 | B183: الخط الرئيسي | C183: 3325 | D183: 3350 | E183: 25 | H183: عبود (متكامل) | I183: 900 | J183: N | K183: 0
A184: 160 | B184: الخط الرئيسي | C184: 3350 | D184: 3375 | E184: 25 | H184: عبود (متكامل) | I184: 900 | J184: N | K184: 0
A185: 161 | B185: الخط الرئيسي | C185: 3375 | D185: 3400 | E185: 25 | H185: عبود (متكامل) | I185: 900 | J185: N | K185: 0
A186: 162 | B186: الخط الرئيسي | C186: 3400 | D186: 3425 | E186: 25 | H186: عبود (متكامل) | I186: 900 | J186: N | K186: 0
A187: 163 | B187: الخط الرئيسي | C187: 3425 | D187: 3450 | E187: 25 | H187: عبود (متكامل) | I187: 900 | J187: N | K187: 0
A188: 164 | B188: الخط الرئيسي | C188: 3450 | D188: 3475 | E188: 25 | H188: عبود (متكامل) | I188: 900 | J188: N | K188: 0
A189: 165 | B189: الخط الرئيسي | C189: 3475 | D189: 3500 | E189: 25 | H189: عبود (متكامل) | I189: 900 | J189: N | K189: 0
A190: 166 | B190: الخط الرئيسي | C190: =C189+25 -> 3500 | D190: 3525 | E190: 25 | H190: عبود (متكامل) | I190: 900 | J190: N | K190: 0
A191: 167 | B191: الخط الرئيسي | C191: 3525 | D191: 3550 | E191: 25 | H191: عبود (متكامل) | I191: 900 | J191: N | K191: 0
A192: 168 | B192: الخط الرئيسي | C192: 3550 | D192: 3575 | E192: 25 | H192: عبود (متكامل) | I192: 900 | J192: N | K192: 0
A193: 169 | B193: الخط الرئيسي | C193: 3575 | D193: 3600 | E193: 25 | H193: عبود (متكامل) | I193: 900 | J193: N | K193: 0
A194: 170 | B194: الخط الرئيسي | C194: 3600 | D194: 3625 | E194: 25 | H194: عبود (متكامل) | I194: 900 | J194: N | K194: 0
A195: 171 | B195: الخط الرئيسي | C195: 3625 | D195: 3650 | E195: 25 | H195: عبود (متكامل) | I195: 900 | J195: N | K195: 0
A196: 172 | B196: الخط الرئيسي | C196: 3650 | D196: 3675 | E196: 25 | G196: 2 | H196: عبود (متكامل) | I196: 900 | J196: Y | K196: 25 | P196: 93 | Q196: 25 | R196: 93 | S196: 25 | T196: 94 | U196: 25 | V196: 95 | W196: 25 | X196: 97 | Y196: 25
A197: 173 | B197: الخط الرئيسي | C197: =C196+25 -> 3675 | D197: =D196+25 -> 3700 | E197: 25 | G197: 2 | H197: عبود (متكامل) | I197: 900 | J197: Y | K197: 25 | P197: 93 | Q197: 25 | R197: 93 | S197: 25 | T197: 94 | U197: 25 | V197: 95 | W197: 25 | X197: 97 | Y197: 25
A198: 174 | B198: الخط الرئيسي | C198: =C197+25 -> 3700 | D198: =D197+25 -> 3725 | E198: 25 | G198: 2 | H198: عبود (متكامل) | I198: 900 | J198: Y | K198: 25 | P198: 93 | Q198: 25 | R198: 93 | S198: 25 | T198: 94 | U198: 25 | V198: 95 | W198: 25 | X198: 97 | Y198: 25
A199: 175 | B199: الخط الرئيسي | C199: 3725 | D199: =D198+25 -> 3750 | E199: 25 | G199: 2 | H199: عبود (متكامل) | I199: 900 | J199: Y | K199: 25 | P199: 93 | Q199: 25 | R199: 93 | S199: 25 | T199: 94 | U199: 25 | V199: 95 | W199: 25 | X199: 97 | Y199: 25
A200: 176 | B200: الخط الرئيسي | C200: 3750 | D200: =D199+25 -> 3775 | E200: 25 | G200: 0 | H200: عبود (متكامل) | I200: 900 | J200: Y | K200: 25 | P200: 88 | Q200: 25 | R200: 88 | S200: 25 | U200: =IF(T200<>"",E200,"") ->  | W200: =IF(V200<>"",E200,"") ->  | X200: 97 | Y200: 25
A201: 177 | B201: الخط الرئيسي | C201: 3775 | D201: =D200+25 -> 3800 | E201: 25 | G201: 0 | H201: عبود (متكامل) | I201: 900 | J201: Y | K201: 25 | P201: 85 | Q201: 25 | R201: 85 | S201: 25 | X201: 97 | Y201: 25
A202: 178 | B202: الخط الرئيسي | C202: 3800 | D202: =D201+25 -> 3825 | E202: 25 | G202: 0 | H202: عبود (متكامل) | I202: 900 | J202: Y | K202: 25 | P202: 85 | Q202: 25 | R202: 85 | S202: 25 | X202: 97 | Y202: 25
A203: 179 | B203: الخط الرئيسي | C203: 3825 | D203: 3831.82 | E203: 6.82 | G203: 0 | H203: عبود (متكامل) | I203: 900 | J203: Y | K203: 6.82 | P203: 85 | Q203: 6.82 | R203: 85 | S203: 6.82 | X203: 97 | Y203: 6.82
A204: 180 | B204: الخط الرئيسي | C204: 3831.82 | D204: 3840.9 | E204: 9.08 | H204: عبود (متكامل) | I204: 900 | J204: N | K204: 0 | P204: 85 | Q204: 9.08 | R204: 85 | S204: 9.08
A205: 181 | B205: الخط الرئيسي | C205: 3840.9 | D205: 3850 | E205: 9.1 | G205: 0 | H205: عبود (متكامل) | I205: 900 | J205: Y | K205: 9.1 | P205: 85 | Q205: 9.1 | R205: 85 | S205: 9.1 | X205: 92 | Y205: 9.1
A206: 182 | B206: الخط الرئيسي | C206: 3850 | D206: =D205+25 -> 3875 | E206: 25 | G206: 0 | H206: عبود (متكامل) | I206: 900 | J206: Y | K206: 25 | P206: 85 | Q206: 25 | R206: 85 | S206: 25 | X206: 92 | Y206: 25
A207: 183 | B207: الخط الرئيسي | C207: =C206+25 -> 3875 | D207: 3900 | E207: 25 | G207: 0 | H207: عبود (متكامل) | I207: 900 | J207: Y | K207: 25 | P207: 85 | Q207: 25 | R207: 85 | S207: 25 | X207: 92 | Y207: 25
... 62 more rows

Sheet مقاولين
B2: شركة كونكورد للهندسة والمقاولات العاصمة الادارية الجديدة المكتب الفني
A4: م | B4: المقاول | C4: حفر | G4: تركيب | K4: اختبار
C5: قطر | D5: قطر | E5: قطر | F5: قطر | G5: قطر | H5: قطر | I5: قطر | J5: قطر | K5: قطر | L5: قطر | M5: قطر | N5: قطر
C6: 900 | D6: 1000 | E6: 1200 | F6: 1400 | G6: 900 | H6: 1000 | I6: 1200 | J6: 1400 | K6: 900 | L6: 1000 | M6: 1200 | N6: 1400
A7: 1 | B7: عبود (متكامل) | C7: =SUMIFS(مياه!$S$17:$S$269,مياه!$H$17:$H$269,B7,مياه!$I$17:$I$269,$C$6) -> 1650 | D7: =SUMIFS(مياه!$S$17:$S$269,مياه!$H$17:$H$269,B7,مياه!$I$17:$I$269,$D$6) -> 1617.58 | E7: =SUMIFS(مياه!$S$17:$S$269,مياه!$H$17:$H$269,B7,مياه!$I$17:$I$269,E$6) -> 0 | F7: =SUMIFS(مياه!$S$17:$S$269,مياه!$H$17:$H$269,B7,مياه!$I$17:$I$269,F$6) -> 0 | G7: =SUMIFS(مياه!$Y$17:$Y$269,مياه!$H$17:$H$269,B7,مياه!$I$17:$I$269,$G$6) -> 1573.42 | H7: =SUMIFS(مياه!$Y$17:$Y$269,مياه!$H$17:$H$269,B7,مياه!$I$17:$I$269,$H$6) -> 1407.89 | I7: =SUMIFS(مياه!$Y$17:$Y$269,مياه!$H$17:$H$269,B7,مياه!$I$17:$I$269,I$6) -> 0 | J7: =SUMIFS(مياه!$Y$17:$Y$269,مياه!$H$17:$H$269,B7,مياه!$I$17:$I$269,J$6) -> 0 | K7: =SUMIFS(مياه!$AJ$17:$AJ$269,مياه!$H$17:$H$269,B7,مياه!$I$17:$I$269,$K$6) -> 0 | L7: =SUMIFS(مياه!$AJ$17:$AJ$269,مياه!$H$17:$H$269,B7,مياه!$I$17:$I$269,$L$6) -> 0 | M7: =SUMIFS(مياه!$AJ$17:$AJ$269,مياه!$H$17:$H$269,F7,مياه!$I$17:$I$269,M$6) -> 0 | N7: =SUMIFS(مياه!$AJ$17:$AJ$269,مياه!$H$17:$H$269,F7,مياه!$I$17:$I$269,N$6) -> 0
A8: 2 | B8: محمد مصطفى | C8: =SUMIFS(مياه!$S$17:$S$269,مياه!$H$17:$H$269,B8,مياه!$I$17:$I$269,$C$6) -> 0 | D8: =SUMIFS(مياه!$S$17:$S$269,مياه!$H$17:$H$269,B8,مياه!$I$17:$I$269,$D$6) -> 0 | E8: =SUMIFS(مياه!$S$17:$S$269,مياه!$H$17:$H$269,B8,مياه!$I$17:$I$269,E$6) -> 1005 | F8: =SUMIFS(مياه!$S$17:$S$269,مياه!$H$17:$H$269,B8,مياه!$I$17:$I$269,F$6) -> 0 | G8: =SUMIFS(مياه!$Y$17:$Y$269,مياه!$H$17:$H$269,B8,مياه!$I$17:$I$269,$G$6) -> 0 | H8: =SUMIFS(مياه!$Y$17:$Y$269,مياه!$H$17:$H$269,B8,مياه!$I$17:$I$269,$H$6) -> 0 | I8: =SUMIFS(مياه!$Y$17:$Y$269,مياه!$H$17:$H$269,B8,مياه!$I$17:$I$269,I$6) -> 996 | J8: =SUMIFS(مياه!$Y$17:$Y$269,مياه!$H$17:$H$269,B8,مياه!$I$17:$I$269,J$6) -> 0 | K8: =SUMIFS(مياه!$AJ$17:$AJ$269,مياه!$H$17:$H$269,B8,مياه!$I$17:$I$269,$K$6) -> 0 | L8: =SUMIFS(مياه!$AJ$17:$AJ$269,مياه!$H$17:$H$269,B8,مياه!$I$17:$I$269,$L$6) -> 0 | M8: =SUMIFS(مياه!$AJ$17:$AJ$269,مياه!$H$17:$H$269,F8,مياه!$I$17:$I$269,M$6) -> 0 | N8: =SUMIFS(مياه!$AJ$17:$AJ$269,مياه!$H$17:$H$269,F8,مياه!$I$17:$I$269,N$6) -> 0
A9: 3 | C9: =SUMIFS(مياه!$S$17:$S$269,مياه!$H$17:$H$269,B9,مياه!$I$17:$I$269,$C$6) -> 0 | D9: =SUMIFS(مياه!$S$17:$S$269,مياه!$H$17:$H$269,B9,مياه!$I$17:$I$269,$D$6) -> 0 | E9: =SUMIFS(مياه!$S$17:$S$269,مياه!$H$17:$H$269,B9,مياه!$I$17:$I$269,E$6) -> 0 | F9: =SUMIFS(مياه!$S$17:$S$269,مياه!$H$17:$H$269,B9,مياه!$I$17:$I$269,F$6) -> 0 | G9: =SUMIFS(مياه!$Y$17:$Y$269,مياه!$H$17:$H$269,B9,مياه!$I$17:$I$269,$G$6) -> 0 | H9: =SUMIFS(مياه!$Y$17:$Y$269,مياه!$H$17:$H$269,B9,مياه!$I$17:$I$269,$H$6) -> 0 | I9: =SUMIFS(مياه!$Y$17:$Y$269,مياه!$H$17:$H$269,B9,مياه!$I$17:$I$269,I$6) -> 0 | J9: =SUMIFS(مياه!$Y$17:$Y$269,مياه!$H$17:$H$269,B9,مياه!$I$17:$I$269,J$6) -> 0 | K9: =SUMIFS(مياه!$AJ$17:$AJ$269,مياه!$H$17:$H$269,B9,مياه!$I$17:$I$269,$K$6) -> 0 | L9: =SUMIFS(مياه!$AJ$17:$AJ$269,مياه!$H$17:$H$269,B9,مياه!$I$17:$I$269,$L$6) -> 0 | M9: =SUMIFS(مياه!$AJ$17:$AJ$269,مياه!$H$17:$H$269,F9,مياه!$I$17:$I$269,M$6) -> 0 | N9: =SUMIFS(مياه!$AJ$17:$AJ$269,مياه!$H$17:$H$269,F9,مياه!$I$17:$I$269,N$6) -> 0
A10: 4 | C10: =SUMIFS(مياه!$S$17:$S$269,مياه!$H$17:$H$269,B10,مياه!$I$17:$I$269,$C$6) -> 0 | D10: =SUMIFS(مياه!$S$17:$S$269,مياه!$H$17:$H$269,B10,مياه!$I$17:$I$269,$D$6) -> 0 | E10: =SUMIFS(مياه!$S$17:$S$269,مياه!$H$17:$H$269,B10,مياه!$I$17:$I$269,E$6) -> 0 | F10: =SUMIFS(مياه!$S$17:$S$269,مياه!$H$17:$H$269,B10,مياه!$I$17:$I$269,F$6) -> 0 | G10: =SUMIFS(مياه!$Y$17:$Y$269,مياه!$H$17:$H$269,B10,مياه!$I$17:$I$269,$G$6) -> 0 | H10: =SUMIFS(مياه!$Y$17:$Y$269,مياه!$H$17:$H$269,B10,مياه!$I$17:$I$269,$H$6) -> 0 | I10: =SUMIFS(مياه!$Y$17:$Y$269,مياه!$H$17:$H$269,B10,مياه!$I$17:$I$269,I$6) -> 0 | J10: =SUMIFS(مياه!$Y$17:$Y$269,مياه!$H$17:$H$269,B10,مياه!$I$17:$I$269,J$6) -> 0 | K10: =SUMIFS(مياه!$AJ$17:$AJ$269,مياه!$H$17:$H$269,B10,مياه!$I$17:$I$269,$K$6) -> 0 | L10: =SUMIFS(مياه!$AJ$17:$AJ$269,مياه!$H$17:$H$269,B10,مياه!$I$17:$I$269,$L$6) -> 0 | M10: =SUMIFS(مياه!$AJ$17:$AJ$269,مياه!$H$17:$H$269,F10,مياه!$I$17:$I$269,M$6) -> 0 | N10: =SUMIFS(مياه!$AJ$17:$AJ$269,مياه!$H$17:$H$269,F10,مياه!$I$17:$I$269,N$6) -> 0
A11: 5 | C11: =SUMIFS(مياه!$S$17:$S$269,مياه!$H$17:$H$269,B11,مياه!$I$17:$I$269,$C$6) -> 0 | D11: =SUMIFS(مياه!$S$17:$S$269,مياه!$H$17:$H$269,B11,مياه!$I$17:$I$269,$D$6) -> 0 | E11: =SUMIFS(مياه!$S$17:$S$269,مياه!$H$17:$H$269,B11,مياه!$I$17:$I$269,E$6) -> 0 | F11: =SUMIFS(مياه!$S$17:$S$269,مياه!$H$17:$H$269,B11,مياه!$I$17:$I$269,F$6) -> 0 | G11: =SUMIFS(مياه!$Y$17:$Y$269,مياه!$H$17:$H$269,B11,مياه!$I$17:$I$269,$G$6) -> 0 | H11: =SUMIFS(مياه!$Y$17:$Y$269,مياه!$H$17:$H$269,B11,مياه!$I$17:$I$269,$H$6) -> 0 | I11: =SUMIFS(مياه!$Y$17:$Y$269,مياه!$H$17:$H$269,B11,مياه!$I$17:$I$269,I$6) -> 0 | J11: =SUMIFS(مياه!$Y$17:$Y$269,مياه!$H$17:$H$269,B11,مياه!$I$17:$I$269,J$6) -> 0 | K11: =SUMIFS(مياه!$AJ$17:$AJ$269,مياه!$H$17:$H$269,B11,مياه!$I$17:$I$269,$K$6) -> 0 | L11: =SUMIFS(مياه!$AJ$17:$AJ$269,مياه!$H$17:$H$269,B11,مياه!$I$17:$I$269,$L$6) -> 0 | M11: =SUMIFS(مياه!$AJ$17:$AJ$269,مياه!$H$17:$H$269,F11,مياه!$I$17:$I$269,M$6) -> 0 | N11: =SUMIFS(مياه!$AJ$17:$AJ$269,مياه!$H$17:$H$269,F11,مياه!$I$17:$I$269,N$6) -> 0
A12: 6 | C12: =SUMIFS(مياه!$S$17:$S$269,مياه!$H$17:$H$269,B12,مياه!$I$17:$I$269,$C$6) -> 0 | D12: =SUMIFS(مياه!$S$17:$S$269,مياه!$H$17:$H$269,B12,مياه!$I$17:$I$269,$D$6) -> 0 | E12: =SUMIFS(مياه!$S$17:$S$269,مياه!$H$17:$H$269,B12,مياه!$I$17:$I$269,E$6) -> 0 | F12: =SUMIFS(مياه!$S$17:$S$269,مياه!$H$17:$H$269,B12,مياه!$I$17:$I$269,F$6) -> 0 | G12: =SUMIFS(مياه!$Y$17:$Y$269,مياه!$H$17:$H$269,B12,مياه!$I$17:$I$269,$G$6) -> 0 | H12: =SUMIFS(مياه!$Y$17:$Y$269,مياه!$H$17:$H$269,B12,مياه!$I$17:$I$269,$H$6) -> 0 | I12: =SUMIFS(مياه!$Y$17:$Y$269,مياه!$H$17:$H$269,B12,مياه!$I$17:$I$269,I$6) -> 0 | J12: =SUMIFS(مياه!$Y$17:$Y$269,مياه!$H$17:$H$269,B12,مياه!$I$17:$I$269,J$6) -> 0 | K12: =SUMIFS(مياه!$AJ$17:$AJ$269,مياه!$H$17:$H$269,B12,مياه!$I$17:$I$269,$K$6) -> 0 | L12: =SUMIFS(مياه!$AJ$17:$AJ$269,مياه!$H$17:$H$269,B12,مياه!$I$17:$I$269,$L$6) -> 0 | M12: =SUMIFS(مياه!$AJ$17:$AJ$269,مياه!$H$17:$H$269,F12,مياه!$I$17:$I$269,M$6) -> 0 | N12: =SUMIFS(مياه!$AJ$17:$AJ$269,مياه!$H$17:$H$269,F12,مياه!$I$17:$I$269,N$6) -> 0
A13: 7 | C13: =SUMIFS(مياه!$S$17:$S$269,مياه!$H$17:$H$269,B13,مياه!$I$17:$I$269,$C$6) -> 0 | D13: =SUMIFS(مياه!$S$17:$S$269,مياه!$H$17:$H$269,B13,مياه!$I$17:$I$269,$D$6) -> 0 | E13: =SUMIFS(مياه!$S$17:$S$269,مياه!$H$17:$H$269,B13,مياه!$I$17:$I$269,E$6) -> 0 | F13: =SUMIFS(مياه!$S$17:$S$269,مياه!$H$17:$H$269,B13,مياه!$I$17:$I$269,F$6) -> 0 | G13: =SUMIFS(مياه!$Y$17:$Y$269,مياه!$H$17:$H$269,B13,مياه!$I$17:$I$269,$G$6) -> 0 | H13: =SUMIFS(مياه!$Y$17:$Y$269,مياه!$H$17:$H$269,B13,مياه!$I$17:$I$269,$H$6) -> 0 | I13: =SUMIFS(مياه!$Y$17:$Y$269,مياه!$H$17:$H$269,B13,مياه!$I$17:$I$269,I$6) -> 0 | J13: =SUMIFS(مياه!$Y$17:$Y$269,مياه!$H$17:$H$269,B13,مياه!$I$17:$I$269,J$6) -> 0 | K13: =SUMIFS(مياه!$AJ$17:$AJ$269,مياه!$H$17:$H$269,B13,مياه!$I$17:$I$269,$K$6) -> 0 | L13: =SUMIFS(مياه!$AJ$17:$AJ$269,مياه!$H$17:$H$269,B13,مياه!$I$17:$I$269,$L$6) -> 0 | M13: =SUMIFS(مياه!$AJ$17:$AJ$269,مياه!$H$17:$H$269,F13,مياه!$I$17:$I$269,M$6) -> 0 | N13: =SUMIFS(مياه!$AJ$17:$AJ$269,مياه!$H$17:$H$269,F13,مياه!$I$17:$I$269,N$6) -> 0
A14: 8 | C14: =SUMIFS(مياه!$S$17:$S$269,مياه!$H$17:$H$269,B14,مياه!$I$17:$I$269,$C$6) -> 0 | D14: =SUMIFS(مياه!$S$17:$S$269,مياه!$H$17:$H$269,B14,مياه!$I$17:$I$269,$D$6) -> 0 | E14: =SUMIFS(مياه!$S$17:$S$269,مياه!$H$17:$H$269,B14,مياه!$I$17:$I$269,E$6) -> 0 | F14: =SUMIFS(مياه!$S$17:$S$269,مياه!$H$17:$H$269,B14,مياه!$I$17:$I$269,F$6) -> 0 | G14: =SUMIFS(مياه!$Y$17:$Y$269,مياه!$H$17:$H$269,B14,مياه!$I$17:$I$269,$G$6) -> 0 | H14: =SUMIFS(مياه!$Y$17:$Y$269,مياه!$H$17:$H$269,B14,مياه!$I$17:$I$269,$H$6) -> 0 | I14: =SUMIFS(مياه!$Y$17:$Y$269,مياه!$H$17:$H$269,B14,مياه!$I$17:$I$269,I$6) -> 0 | J14: =SUMIFS(مياه!$Y$17:$Y$269,مياه!$H$17:$H$269,B14,مياه!$I$17:$I$269,J$6) -> 0 | K14: =SUMIFS(مياه!$AJ$17:$AJ$269,مياه!$H$17:$H$269,B14,مياه!$I$17:$I$269,$K$6) -> 0 | L14: =SUMIFS(مياه!$AJ$17:$AJ$269,مياه!$H$17:$H$269,B14,مياه!$I$17:$I$269,$L$6) -> 0 | M14: =SUMIFS(مياه!$AJ$17:$AJ$269,مياه!$H$17:$H$269,F14,مياه!$I$17:$I$269,M$6) -> 0 | N14: =SUMIFS(مياه!$AJ$17:$AJ$269,مياه!$H$17:$H$269,F14,مياه!$I$17:$I$269,N$6) -> 0
A15: 9 | C15: =SUMIFS(مياه!$S$17:$S$269,مياه!$H$17:$H$269,B15,مياه!$I$17:$I$269,$C$6) -> 0 | D15: =SUMIFS(مياه!$S$17:$S$269,مياه!$H$17:$H$269,B15,مياه!$I$17:$I$269,$D$6) -> 0 | E15: =SUMIFS(مياه!$S$17:$S$269,مياه!$H$17:$H$269,B15,مياه!$I$17:$I$269,E$6) -> 0 | F15: =SUMIFS(مياه!$S$17:$S$269,مياه!$H$17:$H$269,B15,مياه!$I$17:$I$269,F$6) -> 0 | G15: =SUMIFS(مياه!$Y$17:$Y$269,مياه!$H$17:$H$269,B15,مياه!$I$17:$I$269,$G$6) -> 0 | H15: =SUMIFS(مياه!$Y$17:$Y$269,مياه!$H$17:$H$269,B15,مياه!$I$17:$I$269,$H$6) -> 0 | I15: =SUMIFS(مياه!$Y$17:$Y$269,مياه!$H$17:$H$269,B15,مياه!$I$17:$I$269,I$6) -> 0 | J15: =SUMIFS(مياه!$Y$17:$Y$269,مياه!$H$17:$H$269,B15,مياه!$I$17:$I$269,J$6) -> 0 | K15: =SUMIFS(مياه!$AJ$17:$AJ$269,مياه!$H$17:$H$269,B15,مياه!$I$17:$I$269,$K$6) -> 0 | L15: =SUMIFS(مياه!$AJ$17:$AJ$269,مياه!$H$17:$H$269,B15,مياه!$I$17:$I$269,$L$6) -> 0 | M15: =SUMIFS(مياه!$AJ$17:$AJ$269,مياه!$H$17:$H$269,F15,مياه!$I$17:$I$269,M$6) -> 0 | N15: =SUMIFS(مياه!$AJ$17:$AJ$269,مياه!$H$17:$H$269,F15,مياه!$I$17:$I$269,N$6) -> 0
A16: الاجمالي المنفذ | C16: =SUM(C7:C15) -> 1650 | D16: 1617.58 | E16: 1005 | F16: 0 | G16: 1573.42 | H16: 1407.89 | I16: 996 | J16: 0 | K16: 0 | L16: 0 | M16: 0 | N16: 0
A17: الاجمالي الكلي | C17: =SUMIFS(مياه!$E$17:$E$269,مياه!$I$17:$I$269,C6) -> 2015 | D17: =SUMIFS(مياه!$E$17:$E$269,مياه!$I$17:$I$269,D6) -> 2461 | E17: =SUMIFS(مياه!$E$17:$E$269,مياه!$I$17:$I$269,E6) -> 1240 | F17: =SUMIFS(مياه!$E$17:$E$269,مياه!$I$17:$I$269,F6) -> 0 | G17: =SUMIFS(مياه!$E$17:$E$269,مياه!$I$17:$I$269,G6) -> 2015 | H17: =SUMIFS(مياه!$E$17:$E$269,مياه!$I$17:$I$269,H6) -> 2461 | I17: =SUMIFS(مياه!$E$17:$E$269,مياه!$I$17:$I$269,I6) -> 1240 | J17: =SUMIFS(مياه!$E$17:$E$269,مياه!$I$17:$I$269,J6) -> 0 | K17: =SUMIFS(مياه!$E$17:$E$269,مياه!$I$17:$I$269,K6) -> 2015 | L17: =SUMIFS(مياه!$E$17:$E$269,مياه!$I$17:$I$269,L6) -> 2461 | M17: =SUMIFS(مياه!$E$17:$E$269,مياه!$I$17:$I$269,M6) -> 1240 | N17: =SUMIFS(مياه!$E$17:$E$269,مياه!$I$17:$I$269,N6) -> 0
A18: نسبة التنفيذ | C18: =C16/C17 -> 0.8188585608 | D18: 0.6572856562 | E18: 0.810483871 | G18: 0.780853598 | H18: 0.5720804551 | I18: 0.8032258065 | K18: 0 | L18: 0 | M18: 0

Sheet العميل

Sheet Daily Log
A1: م | B1: رقم الطلب | C1: تاريخ تقديم الطلب | D1: اسم المشروع | E1: اسم الطريق | F1: نوع الأعمال | G1: اسم الخط / منهول | H1: وصف الطلب | I1: من | J1: الى | K1: طول (م) | L1: قطر مم | M1: الاعتماد | N1: المكتب الاستشارى | O1: rev no | P1: مهندس المقاول | Q1: ملاحظات | R1: hyperlink | X1: المكتب الاستشارى | Y1: مهندس المقاول | Z1: المشاريع | AA1: وصف الطلب | AB1: طبيعة الاعمال | AC1: الاعتماد | AD1: نوع الاعمال
A3: 0 | K3: =IF(E3<>"",J3-I3,"") ->  | L3: =IF(E3<>"",IF(E3=$S$4,$U$4,IF(E3=$S$5,$U$5,IF(E3=$S$6,$U$6,IF(E3=$S$8,$U$8,IF(E3=$S$9,$U$9,IF(E3=$S$10,$U$10,IF(E3=$S$11,$U$11,IF(E3=$S$12,$U$12,IF(E3=$S$13,$U$13,IF(E3=$S$14,$AA$8,IF(E3=$S$15,$AA$9,IF(E3=$S$16,$AA$10,IF(E3=$S$17,$AA$11,IF(E3=$S$18,#REF!,IF(E3=$S$19,$AA$12,IF(E3=$S$20,$AA$13,IF(E3=$S$21,$AA$15,IF(E3=$S$22,$AA$16,IF(E3=$S$23,$AA$17,IF(E3=$S$24,$AA$18,IF(E3=$S$25,$AA$19,IF(E3=$S$26,$AA$20,IF(E3=$S$27,$AA$21,IF(E3=$S$28,$AA$22,IF(E3=$S$29,$AA$23,IF(E3=$S$30,$AA$24,IF(E3=$S$31,$AA$25,IF(E3=$S$32,$AA$26,IF(E3=$S$33,$AA$27,IF(E3=$S$34,$AA$28,IF(E3=$S$35,$U$35,IF(E3=$S$38,$U$38,IF(E3=$S$41,$U$41,IF(E3=$S$44,$U$44,IF(E3=$S$46,$U$46,""))))))))))))))))))))))))))))))))))),"") -> 
A4: 1 | B4: 1 | C4: 2018-03-11 | F4: استلام نقاط ثوابت مساحية استناد الى الجدول المرفق من وحدة الاستشارات المساحيه - جامعة عين شمس | G4: من 3525الى 5357 | K4: =J4-I4 -> 0 | L4: 900 | N4: A | O4: A
A5: 2 | B5: 2 | C5: 2018-03-11 | F5: استلام الرفع المساحى لمسار خط ال 900 | G5: من 5300الى 5075 | H5: توقيع المسار | I5: 5075 | J5: 5300 | K5: =J5-I5 -> 225 | L5: 900 | N5: D | O5: D | AE5: م | AF5: وصف الطلب | AG5: ملاحظات
A6: 3 | B6: 3 | C6: 2018-03-13 | F6: معاينة قاع حفر + مسار خط ال 900 مم | G6: من 4475الى 4325 | H6: استلام قطاع الحفر | I6: 4325 | J6: 4475 | K6: 150 | L6: 900 | N6: A | O6: A
A7: 4 | B7: 4 | C7: 2018-03-02 | F7: معاينة صخر | G7: من 4475الى4325 | I7: 4325 | J7: 4475 | K7: 150 | L7: 900 | N7: C | O7: C
A8: 5 | B8: 5 | C8: 2018-03-21 | F8: معاينة قاع حفر | G8: من 5075الى 4575 | H8: استلام قطاع الحفر | I8: 4075 | J8: 5075 | K8: 1000 | L8: 900 | N8: A | O8: A | X8: بيت الخبرة | Y8: عشري عبدالرحمن | Z8: طرق بن زايد الشمالى والجنوبى | AA8: الميزانية الشبكية | AB8: صرف | AC8: A | AD8: مساحة | AE8: 1 | AF8: الميزانية الشبكية | AG8: مساح
A9: 6 | B9: 6 | C9: 2018-03-21 | F9: استلام فرشة (طبقة تأسيس) | G9: من 5250الى 5025 | H9: استلام طبقة الفرشة 25 سم | I9: 5025 | J9: 5250 | K9: 225 | L9: 900 | N9: A | O9: A | X9: عبدالوارث | Y9: مصطفى غازى | Z9: طريق 9 | AA9: توقيع المسار | AB9: مياه | AC9: B | AD9: معمل | AE9: 2 | AF9: توقيع المسار | AG9: مساح
A10: 7 | B10: 7 | C10: 2018-03-24 | F10: استلام الرفع المساحى لمسار خط ال 900 | G10: من 225+3الى 357+5 | H10: توقيع المسار | I10: 3225 | J10: 5357 | K10: 2132 | L10: 900 | N10: A | O10: A | Y10: أحمد علاء | Z10: الخط العاجل | AA10: استلام قطاع الحفر | AB10: ري | AC10: C | AE10: 3 | AF10: استلام قطاع الحفر | AG10: مهندس+توجيه معمل
A11: 8 | B11: 8 | C11: 2018-03-25 | F11: استلام طبقة تأسيس (الفرشة) + المسار | G11: من 5025الى 4800 | H11: استلام طبقة الفرشة 25 سم | I11: 4800 | J11: 5025 | K11: 225 | L11: 900 | N11: C | O11: C | Y11: عيد عادل | AA11: منسوب قاع حفر | AB11: كهرباء | AC11: D | AE11: 4 | AF11: منسوب قاع حفر | AG11: مساحة
A12: 9 | B12: 9 | C12: 2018-03-26 | F12: استلام ظهر مواسير (تركيب مواسير) | G12: من 5200الى 5025 | H12: استلام مناسيب ظهر الماسورة والاستقامة | I12: 5025 | J12: 5200 | K12: 175 | L12: 900 | N12: D | O12: D | Y12: حازم | AA12: طبقة الأولى 25 سم | AE12: 5 | AF12: طبقة الأولى 25 سم | AG12: مهندس + توجيه المعمل
A13: 10 | B13: 10 | C13: 2018-03-27 | F13: نتائج الاختبارات المعملية التي تم اجراؤها على الرمل المورد المستخدم في الردم والاحلال والتاسيس على خط ال 900 مياة رئيسيى | G13: نتائج | K13: 0 | L13: 900 | AA13: استلام طبقة الفرشة 25 سم | AE13: 6 | AF13: الفرشة | AG13: مهندس + توجيه المعمل
A14: 11 | B14: 11 | C14: 2018-03-27 | F14: استلام فرشة (طبقة تأسيس) | G14: من 5250الى 5025 | H14: استلام طبقة الفرشة 25 سم | I14: 5025 | J14: 5250 | K14: 225 | L14: 900 | N14: A | O14: A | AA14: استلام منسوب طبقة الفرشة 25 سم | AE14: 7 | AF14: استلام مناسيب ظهر الماسورة والاستقامة | AG14: مساح
A15: 12 | B15: 12 | C15: 2018-03-27 | F15: استلام طبقة أساس (فرشة ) | G15: من 4800الى 4575 | H15: استلام طبقة الفرشة 25 سم | I15: 4575 | J15: 4800 | K15: 225 | L15: 900 | N15: A | O15: A | AA15: استلام مناسيب ظهر الماسورة والاستقامة | AE15: 8 | AF15: استلام تعميم وصلات المواسير | AG15: فى حالة المواسير الخرسانية
A16: 13 | B16: 13 | C16: 2018-03-27 | F16: استلام طبقة تأسيس (فرشة ) نتيجة اختبار | G16: من 4800الى 5025 | H16: استلام طبقة الفرشة 25 سم | I16: 4800 | J16: 5025 | K16: 225 | L16: 900 | AA16: استلام تعميم وصلات المواسير | AE16: 9 | AF16: استلام تغليف بولى ايثيلين (الكم) | AG16: مهندس
A17: 14 | B17: 14 | C17: 2018-04-01 | F17: معاينه قاع حفر | G17: من 4150الى 3975 | H17: استلام قطاع الحفر | I17: 3975 | J17: 4150 | K17: 175 | L17: 900 | N17: A | O17: A | AA17: استلام تغليف بولى ايثيلين (الكم) | AE17: 10 | AF17: ردم حول الماسورة( طبقة أولـى وطبقة ثانية) بسمك 50 سم | AG17: مهندس + توجيه المعمل
A18: 15 | B18: 15 | C18: 2018-04-03 | F18: استلام طبقة أساس (نتائج اختبار الدمك ) | G18: من 4800الى 4575 | I18: 4575 | J18: 4800 | K18: 225 | L18: 900 | AA18: ردم حول الماسورة( طبقة أولـى وطبقة ثانية) بسمك 50 سم | AE18: 11 | AF18: ردم حول الماسورة( طبقة ثالثة وطبقة رابعة ) بسمك 50 سم | AG18: مهندس + توجيه المعمل
A19: 16 | B19: 16 | C19: 2018-04-03 | F19: تسليم تركيب مواسير مناسيب فقط | G19: من 5248.8الى 5025 | H19: استلام مناسيب ظهر الماسورة والاستقامة | I19: 5025 | J19: 5248.8 | K19: 223.8 | L19: 900 | N19: A | O19: A | AA19: ردم حول الماسورة( طبقة ثالثة وطبقة رابعة ) بسمك 50 سم | AE19: 12 | AF19: تغليف المواسير | AG19: مهندس + توجيه المعمل
A20: 17 | B20: 17 | C20: 2018-04-03 | F20: تسليم تركيب مواسير مناسيب فقط | G20: من 5025الى 4800 | H20: استلام مناسيب ظهر الماسورة والاستقامة | I20: 4800 | J20: 5025 | K20: 225 | L20: 900 | N20: A | O20: A | AA20: تغليف المواسير | AE20: 13 | AF20: تجربة الاختبار بالهواء المضغوط | AG20: مهندس
A21: 18 | B21: 18 | C21: 2018-04-05 | F21: استلام قاع حفر (رمل + زلط ) | G21: من 4575الى 4475 | H21: استلام مناسيب ظهر الماسورة والاستقامة | I21: 4475 | J21: 4575 | K21: 100 | L21: 900 | N21: A | O21: A | AA21: تجربة الاختبار بالهواء المضغوط | AE21: 14 | AF21: ردم فوق التغليف (طبقة أولى) | AG21: مهندس + توجيه المعمل
A22: 19 | B22: 19 | C22: 4/5/2018. | F22: استلام قاع حفر | G22: من 4475الى 4375 | H22: منسوب قاع حفر | I22: 4375 | J22: 4475 | K22: 100 | L22: 900 | N22: A | O22: A | AA22: ردم فوق التغليف (طبقة أولى) | AE22: 15 | AF22: ردم فوق التغليف (طبقة ثانية) | AG22: مهندس + توجيه المعمل
A23: 20 | B23: 20 | C23: 2018-04-05 | F23: صلاحيه رمل مورد | G23: من 5250الى 3625 | I23: 3625 | J23: 5250 | K23: 1625 | L23: 900 | N23: C | O23: C | AA23: ردم فوق التغليف (طبقة ثانية) | AE23: 16 | AF23: ردم فوق التغليف (طبقة ثالثة) | AG23: مهندس + توجيه المعمل
A24: 21 | B24: 21 | C24: 2018-04-07 | F24: استلام تركيب مواسير مناسيب فقط | G24: من 4800الى 4575 | H24: استلام مناسيب ظهر الماسورة والاستقامة | I24: 4575 | J24: 4800 | K24: 225 | L24: 900 | N24: A | O24: A | AA24: ردم فوق التغليف (طبقة ثالثة) | AE24: 17 | AF24: ردم فوق التغليف (طبقة رابعة) | AG24: مهندس + توجيه المعمل
A25: 22 | B25: 22 | C25: 2018-04-07 | F25: استلام فرشة ( تأسيس) | G25: من 4575الى 4475 | H25: استلام طبقة الفرشة 25 سم | I25: 4475 | J25: 4575 | K25: 100 | L25: 900 | N25: C | O25: C | AA25: ردم فوق التغليف (طبقة رابعة) | AE25: 18 | AF25: صلاحية تربة زلطية | AG25: توجيه المعمل
A26: 23 | B26: 23 | C26: 2018-04-07 | F26: استلام فرشة (تأسيس ) | G26: من 4475الى 4375 | H26: استلام طبقة الفرشة 25 سم | I26: 4375 | J26: 4475 | K26: 100 | L26: 900 | N26: C | O26: C | AA26: صلاحية تربة زلطية | AE26: 19 | AF26: صلاحية رمال نظيفة | AG26: توجيه المعمل
A27: 24 | B27: 24 | C27: 2018-04-10 | F27: استلام فرشة (نتيجه اختبار دمك) | G27: 4575الى4375 | H27: استلام طبقة الفرشة 25 سم | I27: 4375 | J27: 4575 | K27: 200 | L27: 900 | AA27: صلاحية رمال نظيفة | AE27: 20 | AF27: أخذ عينات صخر | AG27: توجيه المعمل
A28: 25 | B28: 25 | C28: 2018-04-14 | F28: استلام ظهر ماسورة | G28: من 4575الى 4375 | H28: استلام مناسيب ظهر الماسورة والاستقامة | I28: 4375 | J28: 4575 | K28: 200 | L28: 900 | N28: A | O28: A | AA28: أخذ عينات صخر | AE28: 21 | AF28: أخذ عينات من ناتج الحفر | AG28: توجيه المعمل
A29: 26 | B29: 26 | C29: 2018-04-14 | F29: استلام قاع حفر صخر | G29: من 4375الى 4150 | H29: منسوب قاع حفر | I29: 4150 | J29: 4375 | K29: 225 | L29: 900 | AA29: أخذ عينات من ناتج الحفر | AE29: 22
A30: 27 | B30: 27 | K30: 0 | AE30: 23
A31: 28 | B31: 28 | K31: 0 | AE31: 24
A32: 29 | B32: 29 | C32: 2018-04-16 | F32: استلام فرشة اسفل المواسير | G32: من 4375الى 4100 | H32: استلام طبقة الفرشة 25 سم | I32: 4100 | J32: 4375 | K32: 275 | L32: 900 | N32: A | O32: A | AE32: 25
A33: 30 | B33: 30 | C33: 2018-04-18 | F33: استلام فرشة طبقة تأسيس نتيجة اختبار دمك | G33: من 4375الى 4100 | K33: 0 | L33: 900 | AE33: 26
A34: 31 | B34: 31 | C34: 2018-04-22 | F34: استلام مناسيب ظهر مواسير | G34: من 4375الى 4225 | H34: استلام مناسيب ظهر الماسورة والاستقامة | I34: 4225 | J34: 4375 | K34: 150 | L34: 900 | N34: A | O34: A | AE34: 27
A35: 32 | B35: 32 | C35: 2018-04-01 | F35: رفع مساحى للصخر | G35: من 4467الى 4350 | I35: 4350 | J35: 4467 | K35: 117 | L35: 900 | AE35: 28
A36: 33 | B36: 33 | C36: 2018-04-14 | F36: رفع مساحى للصخر | G36: من 4350الى 4150 | I36: 4150 | J36: 4350 | K36: 200 | L36: 900
A37: 34 | B37: 34 | C37: 2018-05-01 | F37: ردم طبقة أولى اعلى المواسير | G37: من 4375الى 4225 | I37: 4225 | J37: 4375 | K37: 150 | L37: 900 | N37: C | O37: C
A38: 35 | B38: 35 | C38: 2018-06-09 | F38: استلام تركيب مواسير | G38: من 225+4الى 125+4 | H38: استلام مناسيب ظهر الماسورة والاستقامة | I38: 4125 | J38: 4225 | K38: 100 | L38: 900 | N38: A | O38: A
A39: 36 | B39: 36 | C39: 2018-04-24 | F39: استلام ثوابت مساحية على خط 1000مم | G39: من 1825الى 3275 | K39: 0 | L39: 1000
A40: 37 | B40: 37 | C40: 2018-04-28 | F40: استلام قاع حفر | G40: من 2275الى 2375 | H40: منسوب قاع حفر | I40: 2275 | J40: 2375 | K40: 100 | L40: 1000 | N40: A | O40: A
A41: 38 | B41: 38 | C41: 2018-04-29 | F41: استلام فرشة (طبقة تاسيس) | G41: من 2275الى 2375 | H41: استلام طبقة الفرشة 25 سم | I41: 2275 | J41: 2375 | K41: 100 | L41: 1000 | N41: D | O41: D
A42: 39 | B42: 39 | C42: 2018-04-30 | F42: استلام تركيب مواسير (مناسيب ظهر المواسير) | G42: من 2275الى 2375 | H42: استلام مناسيب ظهر الماسورة والاستقامة | I42: 2275 | J42: 2375 | K42: 100 | L42: 1000 | N42: A | O42: A
A43: 40 | B43: 40 | C43: 2018-05-01 | F43: ردم طبقة أولى حول المواسير | G43: من 2275الى 2375 | I43: 2275 | J43: 2375 | K43: 100 | L43: 1000
A44: 41 | B44: 41 | C44: 2018-05-11 | F44: استلام قاع حفر | G44: من 2725الى 2375 | H44: منسوب قاع حفر | I44: 2375 | J44: 2725 | K44: 350 | L44: 1000 | N44: A | O44: A
A45: 42 | B45: 42 | C45: 2018-05-13 | F45: تركيب مواسير (مناسيب ظهر الماسورة ) | G45: من 2375الى 2725 | H45: استلام مناسيب ظهر الماسورة والاستقامة | I45: 2375 | J45: 2725 | K45: 350 | L45: 1000 | N45: A | O45: A
A46: 43 | B46: 43 | C46: 2018-05-16 | F46: استلام قاع حفر | G46: 2+278.87الى 2125 | H46: منسوب قاع حفر | I46: 2125 | J46: 2278.87 | K46: 153.87 | L46: 1000 | N46: A | O46: A
A47: 44 | B47: 44 | C47: 2018-05-16 | F47: استلام تركيب مواسير (مناسيب ظهر الماسورة) | G47: 2+278.87الى 2125 | H47: استلام مناسيب ظهر الماسورة والاستقامة | I47: 2125 | J47: 2278.87 | K47: 153.87 | L47: 1000 | N47: A | O47: A
A48: 45 | B48: 45 | C48: 2018-05-17 | F48: استلام قاع حفر | G48: 2125الى 1978.2 | H48: منسوب قاع حفر | I48: 1978.2 | J48: 2125 | K48: 146.8 | L48: 1000 | N48: A | O48: A
A49: 46 | B49: 46 | C49: 2018-05-19 | F49: استلام تركيب مواسير (مناسيب ظهر ماسورة) | G49: من 2125الى 1978.2 | H49: استلام مناسيب ظهر الماسورة والاستقامة | I49: 1978.2 | J49: 2125 | K49: 146.8 | L49: 1000 | N49: A | O49: A
A50: 47 | B50: 47 | C50: 2018-05-22 | F50: استلام قاع حفر | G50: من 2800الى 2900 | H50: منسوب قاع حفر | I50: 2800 | J50: 2900 | K50: 100 | L50: 1000 | N50: A | O50: A
A51: 48 | B51: 48 | C51: 2018-05-22 | F51: استلام قاع حفر | G51: من 969.78+1الى 925+1 | H51: منسوب قاع حفر | I51: 1925 | J51: 1969.78 | K51: 44.78 | L51: 1000 | N51: A | O51: A
A52: 49 | B52: 49 | C52: 2018-05-23 | F52: استلام قاغ حفر | G52: من 925+1الى 875+1 | H52: منسوب قاع حفر | I52: 1875 | J52: 1925 | K52: 50 | L52: 1000 | N52: A | O52: A
A53: 50 | B53: 50 | C53: 2018-05-23 | F53: استلام قاع حفر | G53: من 875+1الى 839+1 | H53: منسوب قاع حفر | I53: 1839 | J53: 1875 | K53: 36 | L53: 1000 | N53: A | O53: A
A54: 51 | B54: 51 | C54: 2018-05-26 | F54: استلام فرشة تأسيس | G54: من 925+1الى 875+1 | H54: استلام طبقة الفرشة 25 سم | I54: 1875 | J54: 1925 | K54: 50 | L54: 1000 | N54: C | O54: C
A55: 52 | B55: 52 | C55: 2018-05-26 | F55: استلام فرشة طبقة تأسيس | G55: من 875+1الى 839+1 | H55: استلام طبقة الفرشة 25 سم | I55: 1839 | J55: 1875 | K55: 36 | L55: 1000 | N55: C | O55: C
A56: 53 | B56: 53 | C56: 2018-05-26 | F56: استلام فرشة طبقة تأسيس | G56: من 800+2الى 900+2 | H56: استلام طبقة الفرشة 25 سم | I56: 2800 | J56: 2900 | K56: 100 | L56: 1000 | N56: C | O56: C
A57: 54 | B57: 54 | C57: 2018-05-26 | F57: طبقة ردم تغليف حول المواسير بارتفاع نصف الماسورة | G57: من 400+2الى 725+2 | H57: ردم حول الماسورة( طبقة أولـى وطبقة ثانية) بسمك 50 سم | I57: 2400 | J57: 2725 | K57: 325 | L57: 1000 | N57: A | O57: A
A58: 55 | B58: 55 | C58: 2018-05-29 | F58: ردم طبقة تانية حول المواسير | G58: من 725+2الى 400+2 | I58: 2400 | J58: 2725 | K58: 325 | L58: 1000 | N58: C | O58: C
A59: 56 | B59: 56 | C59: 2018-05-30 | F59: استلام قاع حفر | G59: من 050+3الى 900+2 | I59: 2900 | J59: 3050 | K59: 150 | L59: 1000 | N59: D | O59: D
A60: 57 | B60: 57 | C60: 2018-05-30 | F60: استلام طبقة ردم وتغليف (طبقه أولى ) 50سم | G60: من 2278.87الى 1978.2 | H60: ردم حول الماسورة( طبقة أولـى وطبقة ثانية) بسمك 50 سم | I60: 1978.2 | J60: 2278.87 | K60: 300.67 | L60: 1000 | N60: A | O60: A
A61: 58 | B61: 58 | C61: 2018-06-05 | F61: استلام قاع حفر | G61: من 900+2الى 075+3 | H61: منسوب قاع حفر | I61: 2900 | J61: 3075 | K61: 175 | L61: 1000 | N61: A | O61: A
A62: 59 | B62: 59 | C62: 2018-06-06 | F62: استلام فرشة اسفل المواسير | G62: من 900+2الى 075+3 | H62: استلام طبقة الفرشة 25 سم | I62: 2900 | J62: 3075 | K62: 175 | L62: 1000 | N62: D | O62: D
A63: 60 | B63: 60 | C63: 2018-06-09 | F63: استلام طبقة أساس (فرشة أساس) | G63: من 2900الى 3075 | H63: استلام طبقة الفرشة 25 سم | I63: 2900 | J63: 3075 | K63: 175 | L63: 1000 | N63: C | O63: C
A64: 61 | B64: 61 | C64: 2018-06-09 | F64: استلام طبقة أساس (نتائج اختبار دمك ) | G64: من 925+1الى 875+1 | K64: 0 | L64: 1000
A65: 62 | B65: 62 | C65: 2018-06-09 | F65: استلام طبقة أساس (نتائج اختبار دمك ) | G65: من 1875الى 1839 | K65: 0 | L65: 1000
A66: 63 | B66: 63 | C66: 2018-06-09 | F66: استلام طبقه أساس (نتائج اختباردمك ) | G66: من 2800الى 2900 | K66: 0 | L66: 1000
A67: 64 | B67: 64 | C67: 2018-06-10 | F67: استلام فرشة (نتيجة اختبار الدمك ) | G67: من 900+2الى 075+3 | K67: 0 | L67: 1000
A68: 65 | B68: 65 | C68: 2018-06-11 | F68: نتائج الاختبار المعملية التي تم اجراؤها على الرمل المستخدم في الردم والاحلال والتاسيس على خط 1000 رقم 1 | G68: من 3100الى 1838.54 | K68: 0 | L68: 1000
A69: 66 | B69: 66 | C69: 2018-06-11 | F69: نتائج الاختبار المعملية التي تم اجراؤها على الرمل المستخدم في الردم والاحلال والتاسيس على خط 900 رقم 2 | G69: من 5250الى 3625 | K69: =J69-I69 -> 0 | L69: 900
A70: 67 | B70: 67 | C70: 2018-06-11 | F70: استلام تركيب مواسير (مناسيب ظهر المواسير ) | G70: من 725+2الى 875+2 | H70: استلام مناسيب ظهر الماسورة والاستقامة | I70: 2725 | J70: 2875 | K70: 150 | L70: 1000 | N70: A | O70: A
A71: 68 | B71: 68 | C71: 2018-06-12 | F71: استلام تركيب مواسير (مناسيب ظهر المواسير) | G71: من 875+2الى 050+3 | H71: استلام مناسيب ظهر الماسورة والاستقامة | I71: 2875 | J71: 3050 | K71: 175 | L71: 1000 | N71: A | O71: A
A72: 69 | B72: 69 | C72: 2018-06-27 | F72: استلام تركيب مواسير (مناسيب ظهر المواسير) | G72: من 969.78+1الى 838.56+1 | H72: استلام مناسيب ظهر الماسورة والاستقامة | I72: 1838.56 | J72: 1969.78 | K72: 131.22 | L72: 1000 | N72: A | O72: A
A73: 70 | B73: 70 | C73: 2018-06-27 | F73: استلام ردم طبقة أولى حول المواسير (نتيجة اختبار دمك ) | G73: من 375+4الى 225+4 | I73: 4225 | J73: 4375 | K73: 150 | L73: 900 | N73: D | O73: D
A74: 71 | B74: 71 | C74: 2018-06-27 | F74: الرفع المساحى لمسار خط 1000 مم ف حرم الطريق الاقليمى | G74: من 050+1الى 839+1 | H74: توقيع المسار | I74: 1050 | J74: 1839 | K74: 789 | L74: 1000 | N74: A | O74: A
A75: 72 | B75: 72 | C75: 2018-07-04 | F75: طبقه إحلال أولى (2.5) | G75: من 4078الى 4100 | I75: 4078 | J75: 4100 | K75: 22 | L75: 900
A76: 73 | B76: 73 | C76: 2018-07-04 | F76: طبقه إحلال أولى (2.5) | G76: من 4050.79الى 4069.69 | I76: 4050.79 | J76: 4069.69 | K76: 18.9 | L76: 900
A77: 74 | B77: 74 | C77: 2018-07-04 | F77: طبقه إحلال أولى (2.5) | G77: من 4025الى 4042.81 | I77: 4025 | J77: 4042.81 | K77: 17.81 | L77: 900
A78: 75 | B78: 75 | C78: 2018-07-07 | F78: نتيجة اختبار دمك (طبقه إحلال أولى 2.5سم | G78: من 4078الى 4100 | I78: 4078 | J78: 4100 | K78: 22 | L78: 900
A79: 76 | B79: 76 | C79: 2018-07-07 | F79: نتيجة اختبار دمك (طبقه إحلال أولى 2.5سم | G79: من 4050.79الى 4069.69 | I79: 4050.79 | J79: 1069.69 | K79: -2981.1 | L79: 900
A80: 77 | B80: 77 | C80: 2018-07-07 | F80: نتيجة اختبار دمك (طبقه إحلال أولى 2.5سم | G80: من 4025الى 4042.81 | I80: 4025 | J80: 4042.81 | K80: 17.81 | L80: 900
A81: 78 | B81: 78 | C81: 2018-07-07 | F81: طبقة إحلال ثانية 25 سم | G81: من 4078الى 4100 | I81: 4078 | J81: 4100 | K81: 22 | L81: 900 | N81: A | O81: A
A82: 79 | B82: 79 | C82: 2018-07-07 | F82: طبقة إحلال ثانية 25 سم | G82: من 4050.79الى 4069.69 | I82: 4050 | J82: 4069.69 | K82: 19.69 | L82: 900 | N82: A | O82: A
A83: 80 | B83: 80 | C83: 2018-07-07 | F83: طبقة إحلال ثانية 25 سم | G83: من4025الى 4042.81 | I83: 4025 | J83: 4042.81 | K83: 17.81 | L83: 900 | N83: A | O83: A
A84: 81 | B84: 81 | C84: 2018-07-08 | F84: نتيجة اختبار دمك (طبقه إحلال أولى 2.5سم | G84: من 4078الى 4100 | I84: 4078 | J84: 4100 | K84: 22 | L84: 900
A85: 82 | B85: 82 | C85: 2018-08-07 | F85: نتيجة اختبار دمك (طبقه إحلال أولى 2.5سم | G85: من 4050.79الى 4069.69 | I85: 4050.79 | J85: 4069.69 | K85: 18.9 | L85: 900
A86: 83 | B86: 83 | C86: 2018-07-08 | F86: نتيجة اختبار دمك (طبقه إحلال أولى 2.5سم | G86: من 4025الى 4042.81 | I86: 4025 | J86: 4042.81 | K86: 17.81 | L86: 900
A87: 84 | B87: 84 | C87: 2018-07-08 | F87: استلام فرش تأسيس | G87: من 3975الى 4025 | H87: استلام طبقة الفرشة 25 سم | I87: 3975 | J87: 4025 | K87: 50 | L87: 900 | N87: A | O87: A
A88: 85 | B88: 85 | C88: 2018-07-08 | F88: استلام قاع حفر | G88: من 3775الى 3975 | H88: منسوب قاع حفر | I88: 3775 | J88: 3975 | K88: 200 | L88: 900 | N88: A | O88: A
A89: 86 | B89: 86 | C89: 2018-07-08 | F89: استلام قاع حفر | G89: من 3625الى 3775 | H89: منسوب قاع حفر | I89: 3625 | J89: 3775 | K89: 150 | L89: 900 | N89: D | O89: D
A90: 87 | B90: 87 | C90: 2018-07-10 | F90: استلام فرشة تأسيس | G90: من 3975الى 4025 | H90: استلام طبقة الفرشة 25 سم | I90: 3975 | J90: 4025 | K90: 50 | L90: 900 | N90: A | O90: A
A91: 88 | B91: 88 | C91: 2018-07-10 | F91: استلام قاع حفر | G91: من 775+3الى 750+3 | H91: منسوب قاع حفر | I91: 3750 | J91: 3775 | K91: 25 | L91: 900 | N91: A | O91: A
A92: 89 | B92: 89 | C92: 2018-07-11 | F92: استلام قاع حفر | G92: من 750+3الى 650+3 | H92: منسوب قاع حفر | I92: 3650 | J92: 3750 | K92: 100 | L92: 900 | N92: D | O92: D
A93: 90 | B93: 90 | C93: 2018-07-14 | F93: استلام تركيب مواسير (منسوب ظهر الماسوره) | G93: من 125+4الى 077.80+4 | H93: استلام مناسيب ظهر الماسورة والاستقامة | I93: 4077.8 | J93: 4125 | K93: 47.2 | L93: 900 | N93: A | O93: A
A94: 91 | B94: 91 | C94: 2018-07-15 | F94: استلام تركيب مواسير (منسوب ظهر الماسوره) | G94: من 069.48+4الى 050.60+4 | H94: استلام مناسيب ظهر الماسورة والاستقامة | I94: 4050.6 | J94: 4069.48 | K94: 18.88 | L94: 900 | N94: A | O94: A
A95: 92 | B95: 92 | C95: 2018-07-14 | F95: استلام تركيب مواسير (منسوب ظهر الماسوره) | G95: من 042.62+4الى 840.90+3 | H95: استلام مناسيب ظهر الماسورة والاستقامة | I95: 3840.9 | J95: 4042.62 | K95: 201.72 | L95: 900 | N95: A | O95: A
A96: 93 | B96: 93 | C96: 2018-07-14 | F96: استلام قاع حفر | G96: من 750+3الى 650+3 | H96: منسوب قاع حفر | I96: 3650 | J96: 3750 | K96: 100 | L96: 900 | N96: A | O96: A
A97: 94 | B97: 94 | C97: 2018-07-15 | F97: استلام تركيب إحلال أولى 25 سم | G97: من 750+3الى 650+4 | I97: 3750 | J97: 4650 | K97: 900 | L97: 900
A98: 95 | B98: 95 | C98: 2018-07-17 | F98: استلام فرشة تأسيس 25 سم | G98: من 750+3الى 650+5 | H98: استلام طبقة الفرشة 25 سم | I98: 3650 | J98: 3750 | K98: 100 | L98: 900 | N98: A | O98: A
A99: 96 | B99: 96 | C99: 2018-07-21 | F99: بدء تركيب مواسير | G99: من 3831.82الى 3650 | K99: 0 | L99: 900
A100: 97 | B100: 97 | C100: 2018-07-25 | F100: استلام تركيب مواسير(مناسيب ظهر ماسوره) | G100: من 3831.82الى 3650 | H100: استلام مناسيب ظهر الماسورة والاستقامة | I100: 3650 | J100: 3831.82 | K100: 181.82 | L100: 900 | N100: A | O100: A
A101: 98 | B101: 98 | C101: 2018-09-18 | F101: صلاحية قاع حفر | G101: من 825 الى 925 | K101: 0 | L101: 1000 | N101: C | O101: C
A102: 99 | B102: 99 | C102: 2018-09-16 | F102: صلاحيه رمل مورد | G102: من 300 الى 800 | K102: 0 | L102: 1200 | N102: C | O102: C
A103: 100 | B103: 100 | C103: 2018-09-16 | F103: استلام ثوابت مساحية على خط قطر 1200 مم (الخط العاجل ) | K103: 0 | L103: 1200
A104: 101 | B104: 101 | C104: 2018-09-20 | F104: رفع مساحى للصخر | G104: من (300+0) الى (625+0) ومن (675+0) الى (800+0) | K104: 0 | L104: 1200 | N104: C | O104: C
A105: 102 | B105: 102 | C105: 2018-09-22 | F105: معاينه واستلام قاع حفر | G105: من (814+0) الى (784+0) | H105: استلام قطاع الحفر | I105: 784 | J105: 814 | K105: 30 | L105: 1200 | N105: A | O105: A
A106: 103 | B106: 103 | C106: 2018-09-22 | F106: استلام طبقة أولى إحلال | G106: من (814+0) الى (784+0) | I106: 784 | J106: 814 | K106: 30 | L106: 1200
A107: 104 | B107: 104 | C107: 2018-09-24 | F107: صلاحيه رمل مورد على خط قطر 1200 مم | K107: 0 | L107: 1200 | N107: C | O107: C
A108: 105 | B108: 105 | C108: 2018-10-02 | F108: الرفع المساحى للقطع حتى منسوب التسوية للخط العاجل | G108: من 087.5+1 الى 430+1 | K108: 0 | L108: 1000 | N108: C | O108: C
A109: 106 | B109: 106 | C109: 2018-09-22 | F109: معاينة واستلام قاع حفر | G109: من 784 الى 700 | H109: استلام قطاع الحفر | I109: 700 | J109: 784 | K109: 84 | L109: 1200 | N109: A | O109: A
A110: 107 | B110: 107 | C110: 2018-09-24 | F110: استلام فرشة تأسيس 25 سم | G110: من 784 الى 700 | H110: استلام طبقة الفرشة 25 سم | I110: 700 | J110: 784 | K110: 84 | L110: 1200 | N110: A | O110: A
A111: 108 | B111: 108 | C111: 2018-09-26 | F111: استلام تركيب مواسير ( مناسيب ظهر ماسورة ) | G111: من 814 الى 700 | H111: استلام مناسيب ظهر الماسورة والاستقامة | I111: 700 | J111: 814 | K111: 114 | L111: 1200 | N111: A | O111: A
A112: 109 | B112: 109 | C112: 2018-09-27 | F112: استلام قاع حفر ( تربة رملية ) | G112: من 824 الى 925 | H112: منسوب قاع حفر | I112: 824 | J112: 925 | K112: 101 | L112: 1000 | N112: B | O112: B
A113: 110 | B113: 110 | C113: 2018-09-29 | F113: استلام تركيب مواسير ( ظهر ماسوره ) | G113: من 824 الى 925 | H113: استلام مناسيب ظهر الماسورة والاستقامة | I113: 824 | J113: 925 | K113: 101 | L113: 1000 | N113: B | O113: B
A114: 111 | B114: 111 | C114: 2018-09-30 | F114: استلام طبقة أولى وتانية ردم حول المواسير سمك 50 سم | G114: من 824 الى 925 | H114: ردم حول الماسورة( طبقة أولـى وطبقة ثانية) بسمك 50 سم | I114: 824 | J114: 925 | K114: 101 | L114: 1000 | N114: B | O114: B
A115: 112 | B115: 112 | C115: 2018-10-01 | F115: استلام طبقة تالتة ورابعة ردم حول المواسير سمك 50 سم | G115: من 824 الى 925 | H115: ردم حول الماسورة( طبقة ثالثة وطبقة رابعة ) بسمك 50 سم | I115: 824 | J115: 925 | K115: 101 | L115: 1000 | N115: B | O115: B
A116: 113 | B116: 113 | C116: 2018-10-02 | F116: معاينة واستلام قاع حفر (تربة صخرية ) | G116: من 925 الى 1025 | H116: استلام قطاع الحفر | I116: 925 | J116: 1025 | K116: 100 | L116: 1000 | N116: B | O116: B
A117: 114 | B117: 114 | C117: 2018-10-03 | F117: استلام فرشة تأسيس 25 سم | G117: من 925 الى 1025 | H117: استلام طبقة الفرشة 25 سم | I117: 925 | J117: 1025 | K117: 100 | L117: 1000 | N117: B | O117: B
A118: 115 | B118: 115 | C118: 2018-09-30 | F118: معاينة واستلام قاع حفر (تربة طفلية ) | G118: من 700 الى 475 | H118: استلام قطاع الحفر | I118: 475 | J118: 700 | K118: 225 | L118: 1200 | N118: A | O118: A
A119: 116 | B119: 116 | C119: 2018-10-01 | F119: استلام طبقة أولى إحلال | G119: من 700 الى 475 | I119: 475 | J119: 700 | K119: 225 | L119: 1200
A120: 117 | B120: 117 | C120: 2018-10-03 | F120: معاينة واستلام قاع حفر (تربة طفلية ) | G120: من 475 الى 225 | H120: استلام قطاع الحفر | I120: 225 | J120: 475 | K120: 250 | L120: 1200 | N120: A | O120: A
A121: 118 | B121: 118 | C121: 2018-10-03 | F121: استلام طبقة تانية إحلال ( اسفل المواسير ) | G121: من 700 الى 475 | H121: استلام طبقة الفرشة 25 سم | I121: 475 | J121: 700 | K121: 225 | L121: 1200 | N121: A | O121: A
A122: 119 | B122: 119 | C122: 2018-10-04 | F122: معاينة قاع حفر ( تربة طفلية ) | G122: من 1075 الى 1200 | H122: استلام قطاع الحفر | I122: 1025 | J122: 1075 | K122: 50 | L122: 1000 | N122: B | O122: B
A123: 120 | B123: 120 | C123: 2018-10-07 | F123: استلام طبقة أولى إحلال | G123: من 1025 الى 1075 | H123: طبقة الأولى 25 سم | I123: 1025 | J123: 1075 | K123: 50 | L123: 1000
A124: 121 | B124: 121 | C124: 2018-10-07 | F124: صلاحية رمل قاع حفر | G124: من 1075 الى 1200 | I124: 1075 | J124: 1200 | K124: 125 | L124: 1000 | N124: C | O124: C
A125: 122 | B125: 122 | C125: 2018-10-07 | F125: استلام تركيب مواسير ( مناسيب ظهر ماسورة ) | G125: من 925الى 1025 | H125: استلام مناسيب ظهر الماسورة والاستقامة | I125: 925 | J125: 1025 | K125: 100 | L125: 1000 | N125: B | O125: B
A126: 123 | B126: 123 | C126: 2018-10-07 | F126: استلام قاع حفر ( تربة رملية ) | G126: من 1075 الى 1200 | H126: منسوب قاع حفر | I126: 1075 | J126: 1200 | K126: 125 | L126: 1000 | N126: C | O126: C
A127: 124 | B127: 124 | C127: 2018-10-07 | F127: صلاحية رمل مورد | G127: خط 1000 | K127: 0 | L127: 1000 | N127: C | O127: C
A128: 125 | B128: 125 | C128: 2018-10-08 | F128: الرفع المساحى لمنسوب الصخر | G128: من 925+0 الى 025+1 | I128: 925 | J128: 1025 | K128: 100 | L128: 1000
A129: 126 | B129: 126 | C129: 2018-10-09 | F129: استلام فرشة تأسيس 25 سم (طبقة تانية ) | G129: من 1025 الى 1075 | H129: استلام طبقة الفرشة 25 سم | I129: 1025 | J129: 1075 | K129: 50 | L129: 1000 | N129: B | O129: B
A130: 127 | B130: 127 | C130: 2018-10-09 | F130: استلام طبقة تغليف 30 سم فوق المواسير | G130: من 824 الى 925 | H130: تغليف المواسير | I130: 824 | J130: 925 | K130: 101 | L130: 1000 | N130: B | O130: B
A131: 128 | B131: 128 | C131: 2018-10-09 | F131: استلام طبقة أولى إحلال 25 سم | G131: من 475 الى 300 | I131: 300 | J131: 475 | K131: 175 | L131: 1200
A132: 129 | B132: 129 | C132: 2018-10-09 | F132: استلام تركيب مواسير (مناسيب ظهر ماسورة) | G132: من 700 الى 625 | H132: استلام تعميم وصلات المواسير | I132: 625 | J132: 700 | K132: 75 | L132: 1200 | N132: B | O132: B
A133: 130 | B133: 130 | C133: 2018-10-09 | F133: استلام تركيب مواسير (مناسيب ظهر ماسورة) | G133: من 616 الى 525 | H133: استلام مناسيب ظهر الماسورة والاستقامة | I133: 525 | J133: 616 | K133: =J133-I133 -> 91 | L133: 1200 | N133: B | O133: B
A134: 131 | B134: 131 | C134: 2018-10-10 | F134: استلام طبقة تانية إحلال ( اسفل المواسير ) | G134: من 475+0 الى 300+0 | I134: 300 | J134: 475 | K134: 175 | L134: 1200 | N134: B | O134: B
A135: 132 | B135: 132 | C135: 2018-10-13 | F135: استلام طبقة أولى وتانية ردم حول المواسير | G135: من 925+0 الى 025+1 | H135: ردم حول الماسورة( طبقة أولـى وطبقة ثانية) بسمك 50 سم | I135: 925 | J135: 1025 | K135: 100 | L135: 1000 | N135: B | O135: B
A136: 133 | B136: 133 | C136: 2018-10-13 | F136: استلام دمك طبقة تانية إحلال اسفل المواسير | G136: من 475+0 الى 300+0 | I136: 300 | J136: 475 | K136: 175 | L136: 1200
A137: 134 | B137: 134 | C137: 2018-10-14 | F137: استلام دمك طبقة تانية إحلال اسفل المواسير | G137: من 475+0 الى 300+0 | I137: 300 | J137: 475 | K137: 175 | L137: 1200
A138: 135 | B138: 135 | C138: 2018-10-14 | F138: استلام طبقة أولى وتانية ردم حول المواسير | G138: من 545+0 الى 0+475 | H138: ردم حول الماسورة( طبقة أولـى وطبقة ثانية) بسمك 50 سم | I138: 475 | J138: 545 | K138: 70 | L138: 1200 | N138: B | O138: B
A139: 136 | B139: 136 | C139: 2018-10-14 | F139: استلام طبقة إحلال أولى 25 سم | G139: من 300+0 الى 225+0 | H139: طبقة الأولى 25 سم | I139: 225 | J139: 300 | K139: 75 | L139: 1200
A140: 137 | B140: 137 | C140: 2018-10-14 | F140: استلام طبقة أحلال أولى 25 سم | G140: من 300+0 الى 225+0 | H140: طبقة الأولى 25 سم | I140: 225 | J140: 300 | K140: 75 | L140: 1200 | N140: B | O140: B
A141: 138 | B141: 138 | C141: 2018-10-17 | F141: استلام دمك فرشة تأسيس 25 سم | G141: من 300+0 الى 225+0 | I141: 225 | J141: 300 | K141: 75 | L141: 1200
A142: 139 | B142: 139 | C142: 2018-10-17 | F142: استلام دمك فرشة تأسيس 25 سم | G142: من 300+0 الى 225+0 | I142: 225 | J142: 300 | K142: 75 | L142: 1200
A143: 140 | B143: 140 | C143: 2018-10-17 | F143: استلام طبقة تالتة ورابعة ردم حول المواسير | G143: من 925+0 الى1025+0 | H143: ردم حول الماسورة( طبقة ثالثة وطبقة رابعة ) بسمك 50 سم | I143: 925 | J143: 1025 | K143: 100 | L143: 1000 | N143: B | O143: B
A144: 141 | B144: 141 | C144: 2018-10-18 | F144: استلام طبقة أولى وتانية ردم حول المواسير | G144: من 814 +0 الى 545+0 | H144: ردم حول الماسورة( طبقة أولـى وطبقة ثانية) بسمك 50 سم | I144: 545 | J144: 814 | K144: 269 | L144: 1200 | N144: B | O144: B
A145: 142 | B145: 142 | C145: 2018-10-18 | F145: استلام طبقة تغليف 30 سم فوق المواسير | G145: من 825+0 الى 925+0 | H145: تغليف المواسير | I145: 825 | J145: 925 | K145: 100 | L145: 1000 | N145: C | O145: C
A146: 143 | B146: 143 | C146: 2018-10-22 | F146: استلام تركيب مواسير (مناسيب ظهر ماسورة ) | G146: من 0+525 الى 0+250 | H146: استلام مناسيب ظهر الماسورة والاستقامة | I146: 250 | J146: 525 | K146: 275 | L146: 1200 | N146: D | O146: D
A147: 144 | B147: 144 | C147: 2018-10-25 | F147: استلام طبقة ثالثة ورابعة ردم حول المواسير | G147: من 0+814 الى 0+525 | H147: ردم حول الماسورة( طبقة ثالثة وطبقة رابعة ) بسمك 50 سم | I147: 525 | J147: 814 | K147: 289 | L147: 1200 | N147: D | O147: D
A148: 145 | B148: 145 | C148: 2018-10-22 | F148: استلام تركيب مواسير (مناسيب ظهر ماسورة) | G148: من525+0 الى 250+0 | H148: استلام مناسيب ظهر الماسورة والاستقامة | I148: 250 | J148: 525 | K148: 275 | L148: 1200 | N148: B | O148: B
A149: 146 | B149: 146 | C149: 2018-10-30 | F149: معاينة واستلام قاع حفر( تربة طفلية) | G149: من 225+0 الى 000+0 | H149: استلام قطاع الحفر | I149: 0 | J149: 225 | K149: 225 | L149: 1200 | N149: B | O149: B
A150: 147 | B150: 147 | C150: 2018-11-01 | F150: استلام طبقة ثالثة ورابعة ردم حول المواسير من محطة (814+0 الى 475+0 ) | G150: من 814+0الى 475+0 | H150: ردم حول الماسورة( طبقة ثالثة وطبقة رابعة ) بسمك 50 سم | I150: 475 | J150: 814 | K150: 339 | L150: 1200 | N150: B | O150: B
A151: 148 | B151: 148 | C151: 2018-11-04 | F151: استلام طبقة إحلال أولى 25 سم من محطة 225+0 الى 000+0 | G151: من محطة 225+0 الى 000+0 | H151: طبقة الأولى 25 سم | I151: 0 | J151: 225 | K151: 225 | L151: 1200 | N151: B | O151: B
A152: 149 | B152: 149 | C152: 2018-11-05 | F152: استلام طبقه اولي وثانيه ردم حول المواسير من محطه 475+0 الي محطه 275+0 | G152: من محطه 475+0 الي محطه 275+0 | H152: ردم حول الماسورة( طبقة أولـى وطبقة ثانية) بسمك 50 سم | I152: 275 | J152: 475 | K152: 200 | L152: 1200 | N152: D | O152: D
A153: 150 | B153: 150 | C153: 2018-11-07 | F153: استلام فرشه تأسيس 25 سم اسفل المواسير من محطه 225+0 الي محطه 000+0 | G153: من محطه 225+0 الي محطه 000+0 | H153: استلام طبقة الفرشة 25 سم | I153: 0 | J153: 225 | K153: 225 | L153: 1200 | N153: D | O153: D
A154: 151 | B154: 151 | C154: 2018-11-07 | F154: استلام طبقه اولي وثانيه ردم حول المواسير من محطه 475+0 الي محطه 275+0 | G154: من محطه 475+0 الي محطه 275+0 | H154: ردم حول الماسورة( طبقة أولـى وطبقة ثانية) بسمك 50 سم | I154: 275 | J154: 475 | K154: 200 | L154: 1200 | N154: B | O154: B
A155: 152 | B155: 152 | C155: 2018-11-07 | F155: استلام فرشه تأسيس 25 سم اسفل المواسير من محطه 225+0 الي محطه 000+0 | G155: من محطه 225+0 الي محطه 000+0 | H155: استلام طبقة الفرشة 25 سم | I155: 0 | J155: 225 | K155: 225 | L155: 1200 | N155: B | O155: B
A156: 153 | B156: 153 | C156: 2018-11-07 | F156: استلام فرشه تأسيس 25 سم اسفل المواسير من محطه 225+0 الي محطه 000+0 + اعمال مساحية | G156: من محطه 225+0 الي محطه 000+0 | H156: استلام طبقة الفرشة 25 سم | I156: 0 | J156: 225 | K156: 225 | L156: 1200
A157: 154 | B157: 154 | C157: 2018-11-13 | F157: استلام مناسيب ظهر ماسوره | G157: من 0+250 الى 0+218 | H157: استلام مناسيب ظهر الماسورة والاستقامة | I157: 218 | J157: 250 | K157: 32 | L157: 1200 | N157: B | O157: B
A158: 155 | B158: 155 | C158: 2018-11-13 | F158: استلام مناسيب ظهر ماسوره | G158: من 0+211 الى 0+075 | H158: استلام مناسيب ظهر الماسورة والاستقامة | I158: 75 | J158: 211 | K158: 136 | L158: 1200 | N158: B | O158: B
A159: 156 | B159: 156 | C159: 2018-11-15 | F159: استلام التعميم الخارجي لفواصل المواسير من محطة 250 الى 000 | G159: من 0+250 الى 0+000 | H159: استلام تعميم وصلات المواسير | I159: 0 | J159: 250 | K159: 250 | L159: 1200 | N159: B | O159: B
A160: 157 | B160: 157 | C160: 2018-11-15 | F160: الرفع المساحى لخط 1000 مم مياة قائم المتقاطع مع مسار الخط العاجل 1200 مم مياة | G160: من الى | K160: 0 | L160: 1200/1000
A161: 158 | B161: 158 | C161: 2018-11-19 | F161: معاينه قاع حفر خط ال 1200 مم من محطه 000+0 الي محطه 125+0- | G161: من 000+0 الى -0+125 | I161: -125 | J161: 0 | K161: 125 | L161: 1200 | N161: B | O161: B
A162: 159 | B162: 159 | C162: 2018-11-21 | F162: استلام قاع حفر على خط 1200 مم من محطه 000+0 الى محطة 125- | G162: من 0+000 الى 125- | I162: -125 | J162: 0 | K162: 125 | L162: 1200 | N162: B | O162: B
A163: 160 | B163: 160 | C163: 2018-11-24 | F163: استلام ثوابت مساحية على مسار الخط العاجل | G163: من الى | K163: 0 | L163: 1200
A164: 161 | B164: 161 | C164: 2018-11-25 | F164: استلام فرشه اسقل المواسير علي خط ال 1200 مم من محطه 000+0 الي محطه 050+0- | G164: من 000+0 الى 050+0- | I164: -50 | J164: 0 | K164: 50 | L164: 1200 | N164: B | O164: B
A165: 162 | B165: 162 | C165: 2018-11-25 | F165: استلام طبقه اولي وثانيه ردم حول المواسير خط 1200 مم من محطه 000+0 الي محطه 225+0 | G165: من 000+0 الى 0+225 | I165: 0 | J165: 225 | K165: 225 | L165: 1200 | N165: B | O165: B
A166: 163 | B166: 163 | C166: 2018-11-25 | F166: استلام طبقه ثالته ورابعه ردم حول المواسير خط 1200 مم محطه 225+0 الي محطه 475+0 | G166: من 0+225 الى 0+475 | I166: 225 | J166: 475 | K166: 250 | L166: 1200 | N166: B | O166: B
A167: 164 | B167: 164 | C167: 2018-11-25 | F167: استلام فرشه اسقل المواسير علي خط ال 1200 مم من محطه 000+0 الي محطه 050+0- (اعمال مساحيه ) | G167: من 0+000 الى -0+050 | I167: -50 | J167: 0 | K167: 50 | L167: 1200 | N167: B | O167: B
A168: 165 | B168: 165 | C168: 2018-11-25 | F168: الرفع المساحي لمنسوب اللبشه الخاصه بنفق B المتقاطع مع الطريق الدائري الإقليمي | G168: من الى | K168: 0 | L168: 1200 | N168: B | O168: B
A169: 166 | B169: 166 | C169: 2018-11-26 | F169: استلام طبقه تغليف اعلي المواسير 30 سم علي خط ال 1200 مم من محطه 475+0 الي محطه 675+0 | G169: من 0+475 الى 0+675 | I169: 475 | J169: 675 | K169: =J169-I169 -> 200 | L169: 1200 | N169: C | O169: C
A170: 166 | B170: 166 | C170: 2018-11-26 | F170: استلام طبقه تغليف اعلي المواسير 30 سم علي خط ال 1200 مم من محطه 475+0 الي محطه 675+0 | G170: من 0+475 الى 0+675 | I170: 475 | J170: 675 | K170: 200 | L170: 1200 | N170: A | O170: A | R170: Scane خط -900-1000مم\Scan\-R1166.pdf
A171: 167 | B171: 167 | C171: 2018-11-27 | F171: استلام تركيب مواسير مناسيب ظهر ماسورة على خط ال 1200 م من محطة 075+0 الى محطة 040+0 - | G171: من 075+0 الى - 0+040 | I171: -40 | J171: 75 | K171: 115 | L171: 1200 | N171: B | O171: B
A172: 168 | B172: 168 | C172: 2018-11-27 | F172: استلام التعميم الخارجي للفواصل المواسير على خط ال 1200 مم من محطة 019+0 الى محطة 025+0 - | G172: من 0+019 الى - 0+025 | I172: -25 | J172: 19 | K172: 44 | L172: 1200 | N172: B | O172: B
A173: 169 | B173: 169 | C173: 2018-11-27 | F173: استلام فرشة اسفل المواسير من محطة 050+0 - الى محطة 125 +0 - على خط ال 1200 مم | G173: من - 0+050 الى - 0+125 | I173: -125 | J173: -50 | K173: =J173-I173 -> 75 | L173: 1200 | N173: C | O173: C
A174: 169 | B174: 169 | C174: 2018-11-27 | F174: استلام فرشة اسفل المواسير من محطة 050+0 - الى محطة 125 +0 - على خط ال 1200 مم | G174: من - 0+050 الى - 0+125 | I174: -125 | J174: -50 | K174: 75 | L174: 1200 | R174: Scane خط -900-1000مم\Scan\-R1169.pdf
A175: 170 | B175: 170 | C175: 2018-11-27 | F175: استلام فرشة اسفل المواسير من محطة 050+0 - الى محطة 125 +0 - على خط ال 1200 مم (اعمال مساحية ) | G175: من - 0+050 الى - 0+125 | I175: -125 | J175: -50 | K175: 75 | L175: 1200 | N175: B | O175: B
A176: 171 | B176: 171 | C176: 2018-11-27 | F176: معاينة قاع حفر من محطة 125+0 - الى محطة 200 +0 - على خط ال 1200 مم | G176: من - 0+125 الى - 0+200 | I176: -200 | J176: -125 | K176: 75 | L176: 1200 | N176: B | O176: B
A177: 172 | B177: 172 | C177: 2018-11-27 | F177: استلام طبقة تالتة ورابعة ردم حول المواسير من محطة 000+0 الى محطة 210 +0 على خط ال 1200 مم | G177: من 0+000 الى 0+210 | I177: 0 | J177: 210 | K177: =J177-I177 -> 210 | L177: 1200 | N177: C | O177: C | R177: Scane خط -900-1000مم\Scan\172_28112018114243.PDF
A178: 172 | B178: 172 | C178: 2018-11-27 | F178: استلام طبقة تالتة ورابعة ردم حول المواسير من محطة 000+0 الى محطة 210 +0 على خط ال 1200 مم | G178: من 0+000 الى 0+210 | I178: 0 | J178: 210 | K178: 210 | L178: 1200 | N178: A | O178: A | R178: Scane خط -900-1000مم\Scan\-R1172.pdf
A179: 173 | B179: 173 | C179: 2018-11-27 | F179: الرفع المساحى لمنسوب الكتلة الخرسانية المتقاطعة مع الخط العاجل قطر 1000 مم (الدقار) من محطة 1825 الى محطة1839 | G179: من 1825 الى 1839 | I179: 1825 | J179: 1839 | K179: 14 | L179: 1000
A180: 174 | B180: 174 | C180: 2018-12-01 | F180: استلام (مناسيب ظهر ماسوره على خط ال 1200 ) من محطة 040+0 - الى محطة 125+0 - | G180: من 040+0 الى 125+0 - | I180: -125 | J180: 40 | K180: 165 | L180: 1200 | N180: B | O180: B
A181: 175 | B181: 175 | C181: 2018-12-02 | F181: استلام التعميم الخارجي لفواصل المواسير علي خط ال 1200 مم من محطه 025+0 - الي محطه 125+0 - | G181: من 025+0 - الى 125+0 - | I181: -125 | J181: -25 | K181: 100 | L181: 1200 | N181: B | O181: B
A182: 176 | B182: 176 | C182: 2018-12-02 | F182: استلام طبقة الرمل اعلى المواسير قطر 1200 مم سمك 30 سم من محطه 475+0 الي محطه 235+0 | G182: من 475+0 الى 235+0 | I182: 235 | J182: 475 | K182: 240 | L182: 1200 | N182: C | O182: C
A183: 177 | B183: 177 | C183: 2018-12-02 | F183: استلام قاع حفر من محطة 125+0 - الى محطة 200 +0 - على خط ال 1200 مم (اعمال مساحيه ) | G183: من 125+0 الى 200 +0 - | I183: -200 | J183: 125 | K183: 325 | L183: 1200 | N183: B | O183: B
A184: 178 | B184: 178 | C184: 2018-12-04 | F184: استلام طبقه اولي وثانيه ردم حول المواسير علي خط ال 1200 مم من محطه 000+0 الي 125+0 - | G184: من 000+0 الى 125+0 - | I184: -125 | J184: 0 | K184: 125 | L184: 1200 | N184: C | O184: C
A185: 179 | B185: 179 | C185: 2018-12-04 | F185: استلام طبقة الرمل اعلى المواسير قطر 1200 مم سمك 30 سم من محطه 210+0 الي محطه 000+0 | G185: من 210+0 الى 000+0 | I185: 0 | J185: 210 | K185: 210 | L185: 1200 | N185: C | O185: C
A186: 180 | B186: 180 | C186: 2018-12-04 | F186: استلام فرشه تأسيس سمك 25 سم اسفل المواسير خط ال 1200 مم من محطه 125+0 - الي محطه 200+0 - | G186: من 125+0 - الى 200+0 - | I186: -125 | J186: -200 | K186: -75 | L186: 1200 | N186: C | O186: C
A187: 181 | B187: 181 | C187: 2018-12-05 | F187: استلام فرشه تأسيس سمك 25 سم اسفل المواسير خط ال 1200 مم من محطه 125+0 - الي محطه 200+0 - (اعمال مساحيه | G187: من 125+0 - الى 200+0 - | I187: -125 | J187: -200 | K187: -75 | L187: 1200 | N187: B | O187: B
A188: 182 | B188: 182 | C188: 2018-12-06 | F188: استلام طبقه من الرمل اعلي المواسير سمك 30 سم من محطه 804+0 الي محطه 675+0 علي خط ال 1200 مم | G188: من 804+0 الى 675+0 | I188: 675 | J188: 804 | K188: =IF(I188<>"",J188-I188,"") -> 129 | L188: 1200 | O188: C | P188: عيد عادل
A189: 183 | B189: 183 | C189: 2018-12-09 | H189: استلام قطاع الحفر | I189: -200 | J189: -244 | K189: =IF(I189<>"",J189-I189,"") -> -44 | L189: 1200 | O189: B | P189: عيد عادل
A190: 184 | B190: 184 | C190: 2018-12-09 | H190: منسوب قاع حفر | I190: -244 | J190: -200 | K190: =IF(I190<>"",J190-I190,"") -> 44 | L190: 1200 | M190: B | P190: عيد عادل | R190: Scane خط -900-1000مم\Scan\184_17122018105352.PDF
A191: 185 | B191: 185 | C191: 2018-12-09 | H191: استلام تعميم وصلات المواسير | I191: -125 | J191: -200 | K191: -75 | L191: 1200 | M191: B | P191: عيد عادل | R191: Scane خط -900-1000مم\Scan\185_10122018115536.PDF
A192: 186 | B192: 186 | C192: 2018-12-09 | H192: ردم حول الماسورة( طبقة ثالثة ) بسمك 25 سم | I192: -125 | J192: 0 | L192: 1200 | M192: C | P192: عيد عادل | R192: Scane خط -900-1000مم\Scan\186_10122018115647.PDF
A193: 187 | B193: 186 | C193: 2018-12-09 | H193: ردم حول الماسورة( طبقة رابعة ) بسمك 25 سم | I193: -125 | J193: 0 | K193: 125 | L193: 1200 | M193: C | P193: عيد عادل | R193: Scane خط -900-1000مم\Scan\186_10122018115647.PDF
A194: 188 | B194: 187 | C194: 2018-12-09 | H194: استلام مناسيب ظهر الماسورة والاستقامة | I194: -125 | J194: -200 | K194: -75 | L194: 1200 | M194: B | P194: عيد عادل | R194: Scane خط -900-1000مم\Scan\187_15122018145157.PDF
A195: 189 | B195: 188 | C195: 2018-12-09 | H195: استلام مناسيب ظهر الماسورة والاستقامة | I195: 1025 | J195: 1200 | K195: 175 | L195: 1000 | M195: B | P195: عيد عادل | R195: Scane خط -900-1000مم\Scan\188_15122018145218.PDF
A196: 190 | B196: 189 | C196: 2018-12-09 | H196: استلام تعميم وصلات المواسير | I196: 1025 | J196: 1200 | K196: 175 | L196: 1000 | M196: B | P196: عيد عادل | R196: Scane خط -900-1000مم\Scan\189_10122018115620.PDF
A197: 191 | B197: 190 | C197: 2018-12-09 | H197: استلام قطاع الحفر | I197: 1200 | J197: 1350 | K197: 150 | L197: 1000 | M197: B | P197: عيد عادل | R197: Scane خط -900-1000مم\Scan\190_10122018115555.PDF
A198: 192 | B198: 191 | C198: 2018-12-09 | H198: منسوب قاع حفر | I198: 1200 | J198: 1350 | K198: 150 | L198: 1000 | M198: C | P198: عيد عادل | R198: Scane خط -900-1000مم\Scan\191_10122018151823.PDF
A199: 193 | B199: 192 | C199: 2018-11-12 | F199: استلام مناسيب ظهر الماسورة والاستقامة | I199: 3412.5 | J199: 3512.5 | K199: 100 | L199: 2000 | M199: B | P199: عيد عادل | Q199: فواريغ | R199: Scane خط -900-1000مم\Scan\192_18122018111637.PDF
A200: 194 | B200: 193 | C200: 2018-12-11 | H200: ردم حول الماسورة( طبقة أولـى وطبقة ثانية) بسمك 50 سم | I200: 3412.5 | J200: 3512.5 | K200: 100 | L200: 2000 | M200: C | P200: عيد عادل | R200: Scane خط -900-1000مم\Scan\193_12122018140346.PDF
A201: 195 | B201: 194 | C201: 2018-12-12 | H201: استلام طبقة الفرشة 25 سم | I201: -200 | J201: -237 | K201: =IF(I201<>"",J201-I201,"") -> -37 | L201: 1200 | M201: D | P201: عيد عادل | R201: Scane خط -900-1000مم\Scan\194_12122018140321.PDF
... 805 more rows

Sheet نتائج الاختبارات
A1: الرقم | B1: التاريخ | C1: الموضوع | D1: نوع الاختبار | E1: من | F1: الى | G1: AC | H1: تاريخ اخذ العينة | I1: Hyperlink
A2: 1 | B2: 2018-03-12 | C2: تقرير الدرسات الهندسية لابحاث التربة والاساسات لشبكة المياه وشبكة الرى | M2: صلاحية | N2: A
A3: 2 | B3: 2018-03-21 | C3: تقرير معاينة قاع الحفر ومنسوب التأسيس خط المياة الرئيسى قطر 900 مم | M3: دمك | N3: B
A4: 3 | B4: 2018-03-28 | C4: شهادة اختبار مصنع عثمان جروب | N4: C
A5: 4 | B5: 2018-03-27 | C5: نتائج الاختبارات المعملية التي تم اجراؤها على الرمل المورد المستخدم في الردم والاحلال والتاسيس على خط 900 مم مياه رئيسى لمنطقة المستثمرين رقم 1 | D5: صلاحية | G5: A | H5: 2018-03-27 | N5: D
A6: 5 | B6: 2018-03-27 | C6: فرشة تأسيس | D6: دمك | E6: 5020 | F6: 5250 | G6: A | H6: 2018-03-27
A7: 6 | B7: 2018-03-27 | C7: فرشة تأسيس | D7: دمك | E7: 4800 | F7: 5025 | G7: A | H7: 2018-03-27
A8: 7 | B8: 2018-04-03 | C8: فرشة أساس | D8: دمك | E8: 4800 | F8: 4575 | G8: A | H8: 2018-04-03
A9: 8 | B9: 2018-04-10 | C9: فرشة تأسيس | D9: دمك | E9: 4575 | F9: 4375 | G9: A | H9: 2018-04-10
A10: 9 | B10: 2018-04-18 | C10: فرشة تأسيس | D10: دمك | E10: 4375 | F10: 4100 | G10: A | H10: 2018-04-18
A11: 10 | B11: 2018-06-09 | C11: فرشة أساس | D11: دمك | E11: 1925 | F11: 1875 | G11: A | H11: 2018-06-09
A12: 11 | B12: 2018-06-09 | C12: فرشة أساس | D12: دمك | E12: 1875 | F12: 1839 | G12: A | H12: 2018-06-09
A13: 12 | B13: 2018-06-09 | C13: فرشة أساس | D13: دمك | E13: 2800 | F13: 2900 | G13: A | H13: 2018-06-09
A14: 13 | B14: 2018-06-10 | C14: فرشة تأسيس | D14: دمك | E14: 2900 | F14: 3075 | G14: A | H14: 2018-06-10
A15: 14 | B15: 2018-06-11 | C15: نتائج الاختبارات المعملية التي تم اجراؤها على الرمل المورد المستخدم في الردم والاحلال والتاسيس على خط 1000 مم رقم 1 | D15: صلاحية | E15: 3100 | F15: 1838.54 | G15: A | H15: 2018-06-11
A16: 15 | B16: 2018-06-11 | C16: نتائج الاختبارات المعملية التي تم اجراؤها على الرمل المورد المستخدم في الردم والاحلال والتاسيس على خط 900 مم مياه رئيسى لمنطقة المستثمرين رقم 2 | D16: صلاحية | E16: 5250 | F16: 3625 | G16: A | H16: 2018-06-11
A17: 16 | B17: 2018-06-27 | C17: طبقة أولى احلال 25 سم | D17: دمك | E17: 4375 | F17: 4225 | G17: D | H17: 2018-06-27
A18: 17 | B18: 2018-07-07 | C18: طبقة أولى احلال 25 سم | D18: دمك | E18: 4078 | F18: 4100 | G18: A | H18: 2018-07-07
A19: 18 | B19: 2018-07-07 | C19: طبقة أولى احلال 25 سم | D19: دمك | E19: 4050.79 | F19: 4069.69 | G19: A | H19: 2018-07-07
A20: 19 | B20: 2018-07-07 | C20: طبقة أولى احلال 25 سم | D20: دمك | E20: 4025 | F20: 4042 | G20: A | H20: 2018-07-07
A21: 20 | B21: 2018-07-08 | C21: طبقة أولى احلال 25 سم | D21: دمك | E21: 4078 | F21: 4100 | G21: A | H21: 2018-07-08
A22: 21 | B22: 2018-07-08 | C22: فرشة أساس | D22: دمك | E22: 4050.79 | F22: 4069.69 | G22: A | H22: 2018-07-08
A23: 22 | B23: 2018-07-08 | C23: فرشة أساس | D23: دمك | E23: 4025 | F23: 4042.81 | G23: A | H23: 2018-07-08
A24: 23 | B24: 2018-07-10 | C24: فرش تأسيس | D24: دمك | E24: 3975 | F24: 4025 | G24: A | H24: 2018-07-10
A25: 24 | B25: 2018-07-17 | C25: طبقة أولى احلال 25 سم | D25: دمك | E25: 3750 | F25: 3650 | G25: D | H25: 2018-07-17
A26: 25 | B26: 2018-07-21 | C26: طبقة اولى احلال 25 سم | D26: دمك | E26: 4375 | F26: 4225 | G26: A | H26: 2018-07-21
A27: 26 | B27: 2018-07-21 | C27: طبقة أولى إحلال وطبقة ثانيه | D27: دمك | E27: 3750 | F27: 3650 | G27: A | H27: 2018-07-21
A28: 27 | B28: 2018-09-23 | C28: نتيجة اختبار دمك طبقة أولى إحلال | D28: دمك | E28: 814 | F28: 784 | G28: A | H28: 2018-09-23
A29: 28 | B29: 2018-09-24 | C29: نتيجة اختبار صلاحية رمل مورد | D29: صلاحية | E29: 300 | F29: 800 | G29: A | H29: 2018-09-24
A30: 29 | B30: 2018-09-27 | C30: نتيجة اختبار فرشة تأسيس | D30: دمك | E30: 784 | F30: 700 | G30: A | H30: 2018-09-27
A31: 30 | B31: 2018-09-27 | C31: نتيجة صلاحية قاع حفر | D31: صلاحية | E31: 825 | F31: 925 | G31: A | H31: 2018-09-27
A32: 31 | B32: 2018-09-27 | C32: نتيجة صلاحية زمل مورد | D32: صلاحية | G32: A | H32: 2018-09-27
A33: 32 | B33: 2018-10-02 | C33: نتيجة اختبار طبقة أولى إحلال | D33: دمك | E33: 475 | F33: 700 | G33: A | H33: 2018-10-02
A34: 33 | B34: 2018-10-04 | C34: فرشة أساس | D34: دمك | E34: 475 | F34: 700 | G34: A | H34: 2018-10-04
A35: 34 | B35: 2018-09-25 | C35: فرشة أساس | D35: دمك | E35: 784+0 | F35: 814+0 | G35: A | H35: 2018-09-25
A36: 35 | B36: 2018-10-10 | C36: طبقة أولى احلال 25 سم | D36: دمك | E36: 300+0 | F36: 475+0 | G36: A | H36: 2018-10-10
A37: 36 | B37: 2018-10-15 | C37: فرشة أساس | D37: دمك | E37: 300+0 | F37: 475+0 | G37: A | H37: 2018-10-15
A38: 37 | B38: 2018-10-15 | C38: طبقة أولى و تانية ردم حول المواسير | D38: دمك | E38: 475+0 | F38: 545+0 | G38: A | H38: 2018-10-15
A39: 38 | B39: 2018-10-15 | C39: نتيجة اختبار طبقة أولى إحلال سمك 25 سم | D39: دمك | E39: 225+0 | F39: 300+0 | G39: A | H39: 2018-10-15
A40: 39 | B40: 2018-10-22 | C40: نتيجة اختبار طبقة أولى وتانية ردم حول المواسير | D40: دمك | E40: 545+0 | F40: 814+0 | G40: A | H40: 2018-10-22
A41: 40 | B41: 2018-11-06 | C41: نتيجة صلاحية رمل مورد على خط 1000 مم | D41: صلاحية | G41: A | H41: 2018-11-06
A42: 41 | B42: 2018-11-06 | C42: نتيجة صلاحية رمل قاع حفر على خط 1000 مم | D42: صلاحية | G42: A | H42: 2018-11-06
A43: 42 | B43: 2018-09-27 | C43: نتيجه اختبار دمك قاع الحفر | D43: دمك | E43: 925+0 | F43: 824+0 | G43: A | H43: 2018-09-27
A44: 43 | B44: 2018-09-30 | C44: نتيجه اختبار دمك طبقه اولي وثانيه ردم حول المواسير | D44: دمك | E44: 925+0 | F44: 824+0 | G44: A | H44: 2018-09-30
A45: 44 | B45: 2018-10-01 | C45: نتيجه اختبار دمك طبقه تلته ورابعه ردم حول المواسير | D45: دمك | E45: 925+0 | F45: 824+0 | G45: A | H45: 2018-10-01
A46: 45 | C46: رقم ساقط | G46: A
A47: 46 | B47: 2018-10-03 | C47: فرشة تأسيس | D47: دمك | E47: 1025 | F47: 925+0 | G47: A | H47: 2018-10-03
A48: 47 | B48: 2018-10-07 | C48: طبقه اولي إحلال 25 سم | D48: دمك | E48: 1075 | F48: 1025 | G48: A | H48: 2018-10-07
A49: 48 | B49: 2018-10-17 | C49: طبقه اولي وثانيه ردم حول المواسير | D49: دمك | E49: 1025 | F49: 925+0 | G49: A | H49: 2018-10-17
A50: 49 | B50: 2018-10-22 | C50: طبقه تالته ورابعه ردم حول المواسير | D50: دمك | E50: 1025 | F50: 925+0 | G50: A | H50: 2018-10-22
A51: 50 | B51: 2018-11-01 | C51: طبقه تالته ورابعه ردم حول المواسير | D51: دمك | E51: 475+0 | F51: 814+0 | G51: A | H51: 2018-11-01
A52: 51 | B52: 2018-11-05 | C52: طبقة أولى احلال 25 سم | D52: دمك | E52: 000+0 | F52: 225+0 | G52: A | H52: 2018-11-05
A53: 52
A54: 53
A55: 54
A56: 55
A57: 56
A58: 57
A59: 58
A60: 59
A61: 60
A62: 61
A63: 62
A64: 63
A65: 64
A66: 65
A67: 66
A68: 67
A69: 68
A70: 69
A71: 70
A72: 71
A73: 72
A74: 73
A75: 74
A76: 75
A77: 76
A78: 77
A79: 78
A80: 79
A81: 80
A82: 81
A83: 82
A84: 83
A85: 84
A86: 85
A87: 86
A88: 87
A89: 88
A90: 89
A91: 90
A92: 91
A93: 92
A94: 93
A95: 94
A96: 95
A97: 96
A98: 97
A99: 98
A100: 99
A101: 100

Sheet 3-إستلام أعمال بنيه تحتية
C2: مشروع العاصمة الإدارية الجديدة
C3: المالــك | H3: الشركة المنفذة | L3: الاستشاري العام للإشراف
C4: طلب معاينة وإستلام أعمال بنيه تحتية ( Infra Structure Inspection Request ) | M4: نموذج رقم (03) | O4: 157
C5: رقم الطلب: | D5: =O4 -> 157 | F5: تاريخ تقديم الطلب: | G5: =VLOOKUP($O$4,'Daily Log'!B4:O505,2,FALSE) -> 2018-11-15 | I5: طريق رقم | L5: رقم اللوحة المعتمدة
C6: =VLOOKUP($O$4,'Daily Log'!B4:O505,14,FALSE) -> 0 | D6: REV no. | F6: تاريخ المعاينة: | I6: خط/ منهول رقم:
C7: الخط الرئيسى | F7: وقت المعاينة | I7: من محطة كم/ منهول: | J7: -200 | L7: الي محطة كم/ منهول: | N7: -237
C8: مواسير قطر: | D8: =VLOOKUP($O$4,'Daily Log'!B4:O505,11,FALSE) -> 1200/1000 | I8: المادة: | J8: =VLOOKUP($O$4,'Daily Log'!B4:O505,7,FALSE) -> 0
C10: مساحة | E10: صرف مياه الأمطار | G10: مياه الشرب | I10: انارة | K10: اشارات مرورية | M10: كهرباء جهد متوسط
C11: صرف صحي | E11: مضخات | G11: خزانات | I11: اتصالات | K11: ري | M11: كهرباء جهد منخفض
C12: تنقية مياه | E12: تنسيق موقع | G12: طرق | I12: بردورات | K12: أرصفة | M12: أخري
C13: يتعهد المقاول بأن الأعمال المذكورة أعلاه قد تم معاينتها من قبله بناءً على مواصفات المشروع و مخططات الورشة المعتمدة و وثائق العقد .
C14: بيـــــــان الأعمـــــال
C15: السيد مدير المشروع (الاستشاري)
C16: يرجى ترتيب معاينة الاعمال السابق بيانها مع مندوب المقاول المهندس : | I16: =VLOOKUP($O$4,'Daily Log'!B4:P505,15,FALSE) -> 0
C17: ملاحظة اضافية :
C18: توقيع مدير التنفيذ | J18: توقيع مدير المشروع
C19: المختص بالاعتماد
C20: مساحة | E20: طرق | G20: ميكانيكا | I20: كهرباء | K20: شبكات | M20: أخري
C21: السيد المهندس/ المهندسين | K21: توقيع مدير المشروع (الاستشاري)
C22: لمعاينة الأعمال السابق بيانها حسب طلب المقاول
C23: ملاحظات الاستشاري:-
C28: كود إعتماد الطلب
C29: معتمد | K29: معتمد مع ملاحظات ويجب إعادة التقديم
C30: معتمد مع ملاحظات (إعادة التقديم غير ضرورية) | K30: الطلب مرقوض
C31: مهندس المقاول | J31: إعتماد مدير المشروع للاستشاري
C32: الاسم: | J32: الاسم:
C33: التوقيع: | J33: التوقيع:
C34: التاريخ: | J34: التاريخ:
C35: صورة لممثل المالك
